Workbook

Sheet Green Star SA
B9: Green Star SA - Existing Building Performance PILOT validates the environmental performance of existing buildings in operation.
B11: You are invited to use Green Star SA - Existing Building Performance PILOT to predict a Green Star SA rating. The Green Building Council of South Africa (GBCSA) does not endorse any self-assessed rating and you are prohibited from presenting self-assessment results in the public domain. This service provides for independent third party review of points claimed to ensure all points can be demonstrated to be achieved by the provision of the necessary documentary evidence. The use of Green Star SA - Performance PILOT without formal certification by the GBCSA does not entitle the user or any other party to promote a Green Star SA rating publicly.
B13: Use the tabs at the bottom of the pages to navigate.
B15: © Green Building Council of South Africa
B16: Last Modified: 27 June 2014
B17: Sponsored by:

Sheet Introduction
B3: Green Star SA - Existing Building Performance PILOT
B7: Introduction to Green Star SA - Existing Building Performance PILOT
B11: What is Green Star SA?
B13: What does Green Star SA - Existing Building Performance PILOT do?
B15: Who can use Green Star SA - Existing Building Performance PILOT?
B17: What do Green Star SA - Existing Building Performance ratings mean?
B19: Acknowledgements
B25: What is Green Star SA?
B26: The Green Star SA environmental rating system for buildings was developed by the Green Building Council of South Africa (GBCSA). Green Star SA is a comprehensive rating system for evaluating the environmental design and performance of South African buildings based on a number of criteria, including energy and water efficiency, indoor environment quality and resource conservation.
B28: The Green Star SA environmental rating system is based upon the Australian Green Star system and has been customised for the South African environment by the GBCSA, under licence from the Green Building Council of Australia.
B29: Green Star SA has built on existing systems and tools in overseas markets, primarily the Australian Green Star system, but also including the British Building Research Establishment Environmental Assessment Method (BREEAM) system and the North American Leadership in Energy and Environmental Design (LEED) system. Environmental measurement criteria relevant to the South African marketplace and environmental context have been created.
B31: The Green Star rating system was created to:
B33: • establish a common language and standard of measurement for green buildings;
B34: • promote integrated, whole-building design;
B35: • raise awareness of green building benefits;
B36: • recognise and reward environmental leadership; and
B37: • reduce the environmental impact of development.
B41: What does Green Star SA - Existing Building Performance PILOT do?
B43: Green Star SA - Existing Building Performance PILOT validates the environmental performance of existing buildings in operation.
B47: Who can use Green Star SA - Existing Building Performance PILOT?
B48: The GBCSA encourages all interested parties to use Green Star SA - Existing Building Performance PILOT to validate the environmental performance of existing buildings. The use of Green Star SA - Existing Building Performance PILOT is encouraged on all such projects to assess and improve their environmental performance.
B50: The use of Green Star SA - Existing Building Performance PILOT without formal certification by the GBCSA does not entitle the user or any other party to promote the Green Star rating achieved. No fee is payable to the GBCSA for such use, however formal recognition of the Green Star SA rating - and the right to promote the same - requires undertaking the formal certification process offered by the GBCSA.
B54: What do Green Star SA Existing Building Performance ratings mean?
B55: Green Star SA rating tools use six stars to measure performance. Star ratings are represented as follows under the rating tool:
B56: • 1-3 Star Green Star Certified Rating acknowledges "Commitment to Performance";
B57: • 4 Star Green Star Certified Rating recognises and rewards "Best Practice";
B58: • 5 Star Green Star Certified Rating recognises and rewards "South African Excellence"; and
B59: • 6 Star Green Star Certified Rating recognises and rewards "World Leadership".
B62: Again, the use of Green Star SA - Existing Building Performance PILOT without formal certification by the GBCSA does not entitle the user or any other party to promote a Green Star SA rating publicly.
B67: Acknowledgements
B68: The Green Building Council would like to acknowledge all parties that worked on and supported the development of the Green Star SA – Existing Building Performance PILOT rating tool.
B70: The GBCSA thanks all those individuals and organisations who provided feedback and expertise to the technical development of the Green Star SA – Existing Building Performance PILOT rating tool. In particular, the GBCSA would like to thank all Technical Steering Committee and Technical Working Group members, as well as technical consultants Royal HaskoningDHV and Ecocentric. The GBCSA also acknowledges the support of the Green Building Council of Australia.
B72: The Green Star SA - Existing Building Performance PILOT tool sponsor Nedbank Corporate, provided much-needed financial support to develop the rating tool.
B74: Green Star SA – Existing Building Performance Pilot is based on national and international guidelines, including primarily the Australian Green Star system, as well as the US LEED Green Building Rating System and UK's BREEAM Environmental Assessment Method.
B76: Green Star SA - Existing Building Performance PILOT Tool Sponsor:

Sheet How to Use
B3: Green Star SA - Existing Building Performance PILOT
B7: How to use this tool
A10: 1. | B10: Complete the worksheets by reviewing each credit in each category and entering the number of points you predict the building will achieve in the 'No. of Points Achieved' column.
A12: 2. | B12: Enter any points that may be achieved but need to be confirmed in the 'Points to be Confirmed' column.
A14: 3. | B14: Enter any comments required in the 'Comments' column.
A16: 4. | B16: The predicted rating is shown in the Summary worksheet. More detail on point scores (both achieved and those to be confirmed) are shown in the Credit Summary and Graphical Summary worksheets at the end of the tool.
B18: NOTE: The Green Star SA - Existing Building Performance PILOT should be used together with the Green Star SA - Existing Building Performance PILOT Technical Manual and the definitions contained therein.
B19: Limitations
B20: The GBCSA does not endorse any self-assessed rating achieved by the use of Green Star - SA Existing Building Performance PILOT. This service provides for independent third party review of points claimed to ensure all points can be demonstrated to be achieved by the provision of the necessary documentary evidence. The use of Green Star SA - Existing Building Performance PILOT without formal certification does not entitle the user or any other party to promote the Green Star SA rating achieved.
B21: The application of Green Star SA - Existing Building Performance PILOT to all existing buildings is encouraged to assess and improve their environmental performance. No fee is payable to the GBCSA for such use, however formal recognition of the Green Star SA rating - and the right to promote the same - requires undertaking the formal certification process offered by the GBCSA.

Sheet Disclaimer
B3: Green Star SA - Existing Building Performance PILOT
B7: Disclaimer
B10: Authorisation, Acknowledgement and Disclaimer
B11: The Green Star SA environmental rating system for buildings (“Green Star SA”) and the Green Star SA – Existing Building Performance rating tool (“Green Star SA – Existing Building Performance”) have been developed by the Green Building Council of South Africa (“GBCSA”). Green Star SA – Existing Building Performance PILOT is intended for use by building owners, managers and other interested parties to validate the environmental performance of buildings in operation. As with all Green Star SA rating tools, Green Star SA - Existing Building Performance PILOT may be subject to further development in the future.
B13: Green Star SA and Green Star SA - Existing Building Performance PILOT have been developed with the assistance and participation of representatives from many organisations. The views and opinions expressed have been determined upon by the GBCSA and its Committees.
B15: The GBCSA authorises you to view and use Green Star SA - Existing Building Performance PILOT for information purposes only. In exchange for this authorisation, you agree that the GBCSA retains all copyright and other proprietary rights contained in and in relation to Green Star SA - Existing Building Performance PILOT and agree not to sell, let, distribute, modify, or use for another purpose the tool or to reproduce, display or distribute the tool in any way for any public or commercial purpose, including display on a website or in a networked environment. Unauthorised use of Green Star SA and/or Green Star SA - Existing Building Performance PILOT will violate copyright and other laws, and is prohibited. All text, graphics, layout and other elements of content contained in Green Star SA and its rating tools are owned by the GBCSA and are protected by copyright, trade mark and other laws.
B17: The GBCSA does not accept responsibility, including for negligence, for any inaccuracy, error or omission within Green Star SA and/or its rating tools and makes no warranty, expressed or implied, including the warranties of merchantability and fitness for a particular purpose, nor assumes any legal liability or responsibility to you or any third parties for the accuracy, completeness, use of or reliance on any information contained in Green Star SA and/or Green Star SA – Existing Building Performance PILOT, or for any injuries, losses or damages (including, without limitation, equitable relief and economic loss) arising out of such use or reliance.
B20: Green Star SA and Green Star SA - Existing Building Performance PILOT are not substitutes for professional advice, nor do they purport to be a professional service. You should seek your own professional and other appropriate advice on the matters addressed by them.
B22: As a condition of use, you undertake not to institute legal proceedings in whatever form against the trade mark and copyright proprietor, and agree to waive and release the GBCSA, its officers, agents, employees and its members from any and all claims, demands and causes of action for any injury, loss, destruction or damage (including, without limitation, equitable relief and economic loss) that you may now or hereafter have a right to assert against such parties as a result of your use of, or reliance on, Green Star SA and/or Green Star SA – Existing Building Performance PILOT.
B24: The GBCSA does not endorse or otherwise acknowledge the Green Star SA rating achieved by the use of Green Star SA – Existing Building Performance PILOT. The service provides for independent third party review of points claimed to ensure all credits can be demonstrated to be achieved by the provision of the necessary documentary evidence. The use of Green Star SA - Existing Building Performance PILOT without formal certification by the GBCSA does not entitle the user or any other party to promote the achieved Green Star SA rating or make use of the Green Star trade marks in whatever manner or form.
B26: The application of Green Star SA - Existing Building Performance PILOT to all existing buildings is encouraged to assess and improve their environmental performance. No fee is payable to the GBCSA for such use, however formal recognition of the Green Star SA rating - and the right to promote the same - requires undertaking the formal certification process offered by the GBCSA.
B28: You are only authorised to proceed to use Green Star SA and Green Star SA – Existing Building Performance PILOT on this basis.
B30: © 2008 Green Building Council of South Africa. All rights reserved.

Sheet Change Log
B3: Green Star SA - Existing Building Performance PILOT
B7: Change Log
B10: Green Star SA Existing Building Performance PILOT Tool Release Date:
B12: 2013-10-16
B16: Changes & Amendments
B18: The GBCSA reserves the right to correct errors and omissions in the Green Star SA - Existing Building Performance PILOT rating tool as necessary. The changes noted in this change log also do not represent changes to points awarded for credits, or changes to credit criteria. The changes noted below are those of minor nature related to the operation of the rating tool and associated calculators.
B20: Reissue Date | C20: Changes
B21: 2013-10-24 | C21: Minor formatting changes made
B22: 2013-10-28 | C22: Errors corrected in Credit Summary and Graphical Summary
B23: 2014-01-16 | C23: Corrected the link to the Category scores
B24: 2014-03-11 | C24: Man-1 - Design ratings incorporated. Criteria for performance as per design removed. (2 points to 1 point) Man-5 - Minor criteria adjustments IEQ-5 - Minor criteria adjustments IEQ-7 - Exhaust Riser criteria removed (3 points to 2 points) TRA-1 - Minor criteria adjustments MAT-2 - Points increased (4 to 6)
B25: 2014-04-07 | C25: Man-4 - Erratum - Points for Policy & Programme updated from 1 to 1.5.
B26: 2014-05-19 | C26: Mat-1 & Mat-2 credit adjusted to allow for 'na''s to be claimed Man-1 & IEQ-7 - minor errors corrected in points available text
B27: 2014-06-27 | C27: All credits adjusted to allow for ''na's" to be claimed Calculations in 'Credit summary' corrected Instered credit names in 'Credit summary' tab
B28: 2015-02-11 | C28: Mat-1 & Mat-2 credit adjusted to allow for 'na''s to be claimed in the points to be confirmed ECO-1 credit adjusted to allow for 'na''s to be claimed in the points to be confirmed TRA-1 Improved Transportation Modes Performance, credit adjusted to allow for 'na''s to be claimed in the points to be confirmed Calculations 'Credit Summary' adding sub totals points achieved and point to be confirmed MAN-3 points allocated corrected

Sheet R1 Pre-Submission Checklist (hidden)
B3: Green Star SA - Office v1
B7: Round 1 Pre-Submission Checklist
B8: Please complete the white cells only below, and submit the completed submission only if all aspects have been addressed.
C11: Administration
B12: 1 | C12: Signed Certification Agreement has been received by the GBCSA | D12: Please Confirm
B13: 2 | C13: The correct and full assessment fee has been received by the GBCSA | D13: Please Confirm
B14: 3 | C14: No Credit Interpretation Requests or Technical Clarifications are outstanding | D14: Please Confirm
B15: 4 | C15: The latest version of the GSSA rating tool has been used | D15: Please Confirm
C17: Eligibility
C18: In the projects opinion, the project meets the following Eligibility Criteria:
B19: 5 | C19: Eligibility Criteria 1: Spatial differentiation | D19: Please Confirm
B20: 6 | C20: Eligibility Criteria 2: Space use | D20: Please Confirm
B21: 7 | C21: Eligibility Criteria 3: Conditional requirements (project meets Ene-0 and Eco-0 conditional requirements) | D21: Please Confirm
B22: 8 | C22: Eligibility Criteria 4: Timing of Certification (project must be certified within 24 months of practical completion) | D22: Please Confirm
C24: Submission content and presentation
B25: 9 | C25: All files are in PDF format only and unlocked, in one layer. | D25: Please Confirm
B26: 10 | C26: Within each category folder, one merged PDF file is provided for each credit targetted | D26: Please Confirm
B27: 11 | C27: Bookmarks have been added for each documentation requirement in the individual credit pdf files | D27: Please Confirm
B28: 12 | C28: Each page of all documents must be marked by use of a label indicating what Documentation Requirement it is supporting | D28: Please Confirm
B29: 13 | C29: Relevant sections of the documentation and drawings have been highlighted to draw the assessors attention to relevant information | D29: Please Confirm
B30: 14 | C30: A general section is included to provide an overview of the project. (It should include architectural drawings, elevations, site plans and complete area summary table for GFA and UA) | D30: Please Confirm
B31: 15 | C31: A completed Green Star SA Excel spreadsheet (for the relevant tool) is included | D31: Please Confirm
B32: 16 | C32: Credit cover sheets (based on the template provided) are included for each credit | D32: Please Confirm
B33: 17 | C33: All reports, letters and drawings referring to the project are on a letterhead and signed where stipulated or where they confirm a commitment | D33: Please Confirm
B34: 18 | C34: Drawings are not in draft form and where applicable carry the "Tender", "For Construction" or “As Built’ stamp/status | D34: Please Confirm
B35: 19 | C35: Specifications are not in draft format | D35: Please Confirm
B36: 20 | C36: All relevant information is included within the credit it supports. (Appendices for each credit can be included, but they must be within the credit itself, clearly referenced within the documentation and have relevant sections highlighted.) | D36: Please Confirm
B37: 21 | C37: All relevant communication with the GBCSA is included (including CIR Rulings and Technical Clarifications relevant to this project) | D37: Please Confirm
B38: 22 | C38: All drawings are still legible after scaling (especially small stamps, monitors/sensors etc.) | D38: Please Confirm
B39: 23 | C39: All inputs are consistent throughout the submission. (E.g. the fresh air rates claimed in IEQ-1 Ventilation Rates are consistent with Energy modelling in Ene-1. Assessors will not award points and will require conformation where there are inconsistencies.) | D39: Please Confirm
B40: 24 | C40: Submission for each credit includes all documentation stipulated in the Technical Manual and the TC/CIR portal on the GBCSA website | D40: Please Confirm
B41: 25 | C41: All credits claiming “na” have the required supporting documentation | D41: Please Confirm
B42: 26 | C42: CD/DVD cover and CD/DVD, communicates the official project name, project reference number, project address, Green Star SA Tool, contact person’s details, submission round and date. | D42: Please Confirm
B43: 27 | C43: Folders are included within the digital submission (CD’s) and correspond to the Green Star SA categories and are in the correct order, following the categories and credits. | D43: Please Confirm
B44: 28 | C44: All documents are orientated in the same direction | D44: Please Confirm
B45: 29 | C45: The AP declaration has been signed and submitted with the submission | D45: Please Confirm
C47: Submission delivery
B48: 30 | C48: Four digital copies (four CDs) have been prepared for the submission | D48: Please Confirm
B51: Name: ___________________________________ Company: ___________________________________
B53: Signature of Applicant: ___________________________________
B55: Note: If any of the above have not been complied with, the GBCSA reserves the right to return submission documentation to the project for re-submission and compliance with the above.

Sheet R2 Pre-Submission Checklist (hidden)
B3: Green Star SA - Office v1
B7: Round 2 Pre-Submission Checklist
B8: Please complete the white cells only below, and submit the completed submission only if all aspects have been addressed.
C11: Administration
B12: 1 | C12: No Credit Interpretation Requests or Technical Clarifications are outstanding | D12: Please Confirm
C14: Eligibility
B15: 2 | C15: Eligibility has been established and all conditional requirements have been met OR any eligibility issues raised in Round 1 have been addressed | D15: Please Confirm
C17: Submission content and presentation
B18: 3 | C18: All files are in PDF format only and unlocked, in one layer. | D18: Please Confirm
B19: 4 | C19: Within each category folder, one merged PDF file is provided for each credit targetted | D19: Please Confirm
B20: 5 | C20: Bookmarks have been added for each documentation requirement in the individual credit pdf files | D20: Please Confirm
B21: 6 | C21: Each page of all documents must be marked by use of a label indicating what Documentation Requirement it is supporting | D21: Please Confirm
B22: 7 | C22: Relevant sections of the documentation and drawings have been highlighted to draw the assessors attention to relevant information | D22: Please Confirm
B23: 8 | C23: A general section is included to provide an overview of the project. (It should include architectural drawings, elevations, site plans, complete area summary table for GFA and UA, and 2 x images/renderings of the project) | D23: Please Confirm
B24: 9 | C24: A completed Green Star SA Excel spreadsheet (for the relevant tool) is included | D24: Please Confirm
B25: 10 | C25: Credit cover sheets (based on the template provided) are included for each credit | D25: Please Confirm
B26: 11 | C26: All reports, letters and drawings referring to the project are on a letterhead and signed where stipulated or where they confirm a commitment | D26: Please Confirm
B27: 12 | C27: Drawings are not in draft form and where applicable carry the "Tender", "For Construction" or “As Built’ stamp/status | D27: Please Confirm
B28: 13 | C28: Specifications are not in draft format | D28: Please Confirm
B29: 14 | C29: All relevant information is included within the credit it supports. (Appendices for each credit can be included, but they must be within the credit itself, clearly referenced within the documentation and have relevant sections highlighted.) | D29: Please Confirm
B30: 15 | C30: All relevant communication with the GBCSA is included (including CIR Rulings and Technical Clarifications relevant to this project) | D30: Please Confirm
B31: 16 | C31: All drawings are still legible after scaling (especially small stamps, monitors/sensors etc.) | D31: Please Confirm
B32: 17 | C32: All inputs are consistent throughout the submission. (E.g. the fresh air rates claimed in IEQ-1 Ventilation Rates are consistent with Energy modelling in Ene-1. Assessors will not award points and will require conformation where there are inconsistencies.) | D32: Please Confirm
B33: 18 | C33: Submission for each credit includes all documentation stipulated in the Technical Manual and the TC/CIR portal on the GBCSA website | D33: Please Confirm
B34: 19 | C34: All credits claiming “na” have the required supporting documentation | D34: Please Confirm
B35: 20 | C35: CD/DVD cover and CD/DVD, communicates the official project name, project reference number, project address, Green Star SA Tool, contact person’s details, submission round and date. | D35: Please Confirm
B36: 21 | C36: Folders are included within the digital submission (CD’s) and correspond to the Green Star SA categories and are in the correct order, following the categories and credits. | D36: Please Confirm
B37: 22 | C37: All documents are orientated in the same direction | D37: Please Confirm
B38: 23 | C38: All comments from Round 1 have been clearly addressed; new information and/or new credits are highlighted. | D38: Please Confirm
B39: 24 | C39: The AP declaration has been signed and submitted with the submission | D39: Please Confirm
C41: Submission delivery
B42: 25 | C42: Four digital copies (four CDs) have been prepared for the submission | D42: Please Confirm
B45: Name: ___________________________________ Company: ___________________________________
B47: Signature of Applicant: ___________________________________
B49: Note: If any of the above have not been complied with, the GBCSA reserves the right to return submission documentation to the project for re-submission and compliance with the above.

Sheet Applicant Declaration (hidden)
B3: Green Star SA - Office v1
B7: Green Star SA Project Submission - Applicant Declaration
B8: *This page must be printed and signed by the project applicant, and included in the general section of the project submission for Round 1 and Round 2.
B11: The Green Building Council of South Africa (GBCSA) aims to ensure that every Green Star SA submission is of a good quality and reflects the appropriate correct and true contractual documents on the project (whether they are Design or As Built project contractual documents). In this regard, the GBCSA requires that all Green Star SA project applicants sign this acknowledgement and declaration letter. Acknowledgement and declaration by the Green Star SA project applicant: I/We,___________________________________________________, the person/s responsible for compiling the Green Star SA submission on behalf of ________________________________________________ (the Applicant), confirm that I/we have taken due care, and acknowledge and declare that (to the best of my/our knowledge): 1. I/We have read and understood the relevant technical manual, the conditions of certification and any relevant Technical Clarifications, Errata and Credit Interpretation Requests. 2. All documentation submitted by me/us on behalf of the Applicant towards this Green Star SA submission has been verified by the appropriate professional/s as being true, correct and accurate. 3. All documentation submitted by me/us on behalf of the Applicant complies with all applicable legislation. 4. All documents and reports submitted to me/us by the Applicant's project team are true and correct and accurately reflect the project’s contractual documentation (whether for a Design or As Built submission). 5. All documents and reports which I/we have prepared for the submission are true and correct and accurately reflect the project’s contractual documentation (whether for a Design or As Built submission). 6. I/We have disclosed all applicable information relevant to the Application and undertake to disclose any further information that may influence the Application. Where the GBCSA identifies any serious or systematic non-conformances on project documentation in a submission from the Applicant, the GBCSA has the right to query such non-conformance/s with the Applicant, at which point the Applicant is required to investigate this further with its project team, and provide a written response to the GBCSA by no later than 7 (seven) business days from the date on which the query was made to the Applicant by the GBCSA. If the response from the Applicant confirms that the information provided was incorrect, the Applicant's project team can: a) For a Round 1 submission re-submit the correct information in Round 2 (as per assessor comments) or clarify that the information is not available and concede the point in Round 2 b) For a Round 2 submission, confirm to the GBCSA the incorrect nature of the information submitted, in which event the incorrect information will be excluded from the submission documents counted in the Round 2 results. If the response from the Applicant confirms that the information provided was correct, the Applicant's project team can, on behalf of the Applicant: c) In a Round 1 submission re-submit the correct information in Round 2. d) In a Round 2 submission, notify the GBCSA that such information was in fact correct, in which event the GBCSA will run this by the assessors for a final review before the results are published. Where these processes are not followed and the relevant submission documents remain under question, the GBCSA will notify the Applicant, and the credit/s to which this information relates will be unobtainable. Where this incomplete process occurs more than once, with the Applicant, the GBCSA reserves the right not to accept any further submissions from this Applicant in future. At the first instance where this incomplete process occurs, the Applicant will be placed on twelve (12) months’ probation, during which time any similar infringement would allow the GBCSA to exercise its right to not accept any further submissions from the Applicant. Further to this, where the Applicant is a Green Star SA Accredited Professional (GSSA AP), the GBCSA reserves the right to remove the Applicant’s GSSA AP qualification and remove them from the GSSA AP registry on the GBCSA’s website. Signature: ___________________________________ Date: ___________________________________ Name: ___________________________________ Company: ___________________________________ Signature of Applicant’s line manager warranting that s/he is duly authorised: ___________________________________ Name of Applicant’s line manager warranting that s/he is duly authorised: ___________________________________

Sheet Building Input (hidden)
B1: =Calculation!N31 -> Green Star SA - Existing Building Performance PILOT | C1: Building Input Worksheet
B2: New or Refurbished Building:
B3: Type of Rating
B5: Name of Building:
B6: Address of Building:
B9: Postcode:
B10: Province:
B12: Applicant:
B13: Contact Person:
B15: Green Star SA Accredited Professional:
B16: Project Manager:
B17: Architect:
B18: Structural/Civil Engineer:
B19: Mechanical Engineer:
B20: Electrical Engineer:
B21: Wet Services Engineer:
B22: Fire Systems Engineer:
B23: Quantity Surveyor:
B24: Acoustic Consultant:
B25: Landscaping Consultant:
B26: Building Surveyor:
B27: Main Contractor:
B28: Local Planning Authority:
B30: Total Gross Floor Area (GFA) in m²:
B31: Total Commercial Office GFA in m²:
B32: Total Commercial Office Usable Area (UA) in m²:
B33: Total Car Parking Area in m²:
B34: Sub basement Parking Area (B2 and below) in m²:
B35: External Areas (excluding Car Parking) in m²:
B36: % of Commercial Office Space: | C36: =IF(C31>0,C31/C30,) -> 0
B37: Eligibility for Assessment | C37: =IF(C36>=80%,"The project meets area compliance for Green Star SA assessment.","Area compliance not met. To be eligible for Green Star SA assessment, Commercial Office GFA must account for at least 80% of the total GFA.") -> Area compliance not met. To be eligible for Green Star SA assessment, Commercial Office GFA must account for at least 80% of the total GFA.
B39: Building Description: (Orientation, Form, Structure, Façade, etc.)
B41: Building Services: (Heating, Cooling, Ventilation, Lighting, Lifts, Domestic Hot Water)
B43: Todays Date:
B44: Current Project Phase:
B45: Fully Registered Date:
B46: Site Handover Date:
B47: Construction Commencement Date:
B48: Practical Completion Date:
B50: NOTE: Use of Green Star SA - Office v1 may predict a rating that differs from that achieved via formal Green Star SA certification. Detailed guidance on credit compliance criteria is contained in the Green Star SA - Office v1 Technical Manual.

Sheet Management
A1: Green Star SA - Existing Building Performance PILOT | J1: Category Score
A2: Management | E2: Category Summary: | F2: =F15 -> 18.5 | G2: =G15 -> 18.5 | H2: =H15 -> 0 | I2: =I15 -> 0 | J2: ='Credit Summary'!I12 -> 0
A3: Credit Summary for: | D3: =IF('Building Input'!$C$5=0,"",'Building Input'!$C$5) ->  | H3: =IF(OR((K3=Calculation!$D$97),(K3=Calculation!$D$98),((H2+I2)>G2)),Calculation!$D$99,"") ->  | K3: =T(K5:K14) -> 
A4: Ref No. | C4: Title | D4: Aim of Credit | E4: Credit Criteria Summary | F4: No. of Points Available | G4: No. of Points Available | H4: No. of Points Achieved | I4: Points to be Confirmed | J4: Comments | K4: Comments
A5: EB- | B5: Man-1 | C5: Certified Buildings | D5: To reward buildings that have shown previous environmental achievement through As Built Green Star SA ratings and have mainained this performance in operation. | E5: 1 point is available as follows: Certified Buildings 1 point is awarded if the building has a Green Star SA - Design/As-Built certification. | F5: 1 | G5: =IF(H5="na",0,F5) -> 1
A6: EB- | B6: Man-2 | C6: Accredited Professional | D6: To encourage and recognise the involvement of qualified individuals who can assist the owner/ facilities management team with the integration of Green Star SA aims and processes throughout the assessment of baselines, targeted improvements and interventions before and during the performance period to application, submission and certification. | E6: 1 point is awarded if a principal participant in the existing building team is a Green Star SA Existing Buildings Accredited Professional AND Has been employed or engaged by the building owner to provide support and encourage the operations, maintenance, and upgrade team integration required for Performance Rating implementation. Also, to streamline the application and certification process. This credit can be claimed as ‘Not Applicable’ for PILOT projects. Enter "na" in the 'No. of Points Achieved' column. | F6: 1 | G6: =IF(OR((H6="na"),(I6="na")),0,F6) -> 1
A7: EB- | B7: Man-3 | C7: Building Management | D7: To recognise management and operating processes and procedures used to optimise building environmental performance. | E7: 5 points are available as follows: Building Operations Manual 1 point is awarded where a Building Operations Manual has been implemented and is actively used as a guide for operating building systems efficiently and managing resources effectively. *Note – for PILOT Projects, the Building Operations Manual need not be implemented throughout the performance period, but the manual must have been produced. Building Users’ Guide 1 point is awarded where a simple and easy-to-use Building Users’ Guide is available and is used as part of building management, for the purpose of providing relevant building information to users, occupants and tenants. If the requirement for a Building Users’ Guide has been satisfied under the Green Star SA Design / As-Built certification, this point will be automatically be awarded. Maintenance Management 1 point is awarded where there is evidence of operational maintenance planning and scheduling for Building assets and equipment. 1 additional point will be awarded where the building owner demonstrates that 75% of the planned maintenance activities have been executed and that the corresponding budget expenditure has been met during the performance period. A total of two points can be awarded here, the second and third points being dependent on achieving of the first. | F7: 4 | G7: =IF(H7="na",0,F7) -> 4
E8: Life Cycle Maintenance 1 point will be awarded where there is a programme of life cycle maintenance or replacement of key building components, which is actively used in optimising the building’s environmental performance. | F8: 1 | G8: 1
A9: EB- | B9: Man-4 | C9: Green Cleaning Performance | D9: To encourage high performance cleaning practices, which reduce the exposure of building occupants and maintenance personnel to potentially hazardous chemical, biological and particulate contaminants that compromise indoor environmental quality, human health, building fabric and the natural environment. | E9: 3.5 points are available as follows Green Cleaning Policy & High Performance Green Cleaning Programme 1.5 points are awarded where: • The applicant develops and implements* a compliant Green Cleaning Policy during the performance period. This Green Cleaning Policy must be in line with the Green Star SA Policy Model (available from the GBCSA on request). • A high performance Ggreen Ccleaning Pprogramme is in place and actively and measurably implemented during the performance period*. *Note – For PILOT projects only, implementation of the Green Cleaning Policy and Green Cleaning Programme may be waivered, however the Policy and Programme must have been developed. | F9: 1.5 | G9: =IF(H9="na",0,F9) -> 1.5
E10: Purchase of Green Cleaning Consumables Up to 1 Point is awarded as follows: 0.5 points are awarded where 20% by cost of total cleaning consumables purchased during the performance period* meet the sustainability criteria for their product category. 0.5 additional points are awarded where 40% by cost of total cleaning consumables purchased during the performance period* meet the sustainability criteria for their product category. | F10: 1 | G10: =IF(H10="na",0,F10) -> 1
E11: Purchase of Green Cleaning Equipment 0.5 points are awarded where 60% of all new purchases of cleaning equipment meet the sustainability criteria outlined under the Compliance Requirements. A phase-out plan for existing equipment that is non-compliant has to be submitted. | F11: 0.5 | G11: =IF(H11="na",0,F11) -> 0.5
E12: Cleaning Audit 0.5 points are awarded where a cleaning audit is carried out in accordance with the stipulated guidelines and a score of 3 or less is obtained. For all Multi-tenanted Buildings, the following applies: Where the landlord-occupied areas (landlord-tenanted space and common areas) comprise more than 10% of the GLA, half of the points available can be achieved for landlord compliance only. The remaining 50% of the points are awarded where tenants have committed to specific Tenant Criteria clauses requiring them to implement the targeted criteria as set out within the credit. The number of tenants who have committed to these clauses must be such that a minimum of 75% of the building GLA is compliant with the credit criteria (either through landlord or tenant commitment). See Technical Manual for Further Details | F12: 0.5 | G12: =IF(H12="na",0,F12) -> 0.5
A13: EB- | B13: Man-5 | C13: Green Leasing | D13: To recognise and encourage collaboration between the building owner and tenants in order to manage and operate the building along environmentally sustainable principles whilst realising mutual benefit. | E13: 6 points are available as follows: Tenancy fit-out and alterations A maximum of 2 points can be awarded where a signed agreement is in place between building owner and tenant during the performance period, in order to ensure that fit-out design and construction for the occupied rentable space meets the intended sustainability objectives. Points are adjusted depending on the type of agreement signed (Memorandum of Agreement, Mutual Disclosure or Performance agreement) as well as the percentage of tenanted area covered by a green lease. See table in Technical Manual for further guidance. Management and operations A maximum of 4 points can be awarded where the building owner has a signed agreement with the tenant during the performance period, in order to ensure that occupied rentable space is operated and managed in compliance with the Green Star SA Existing Building Performance checklist. Points are adjusted depending on the type of agreement signed (Memorandum of Agreement, Mutual Disclosure or Performance agreement) as well as the percentage of tenanted area covered by a green lease. See table in Technical Manual for further guidance. Where no leasing arrangement exists for the building (e.g. owner-tenanted buildings), or where areas under a lease agreement make up less than 30% of the building GLA, this credit can be claimed as ‘Not Applicable’. Enter "na" in the 'No. of Points Achieved' column. | F13: 6 | G13: =IF(OR((H13="na"),(I13="na")),0,F13) -> 6
A14: EB- | B14: Man-6 | C14: Ongoing Monitoring and Metering | D14: To recognize operational practices which facilitate effective ongoing monitoring and metering of water and energy consumption. | E14: 2 points are available as follows: Basic Monitoring Strategy 0.5 points are awarded where metering is provided for major energy consumption of the building for the performance period AND There is an effective mechanism for monitoring the consumption data. 0.5 points are awarded where metering is provided for major water consumption of the building for the performance period AND There is an effective mechanism for monitoring the consumption data. Advanced Monitoring Strategy 0.5 points for water and 0.5 points for energy are awarded where: • The point above is achieved, AND • Installed meters are online and live monitoring is implemented, AND • There is an effective automated mechanism for monitoring the consumption data (trending, logging, etc) | F14: 2 | G14: 2
E15: Total Points: | F15: =SUM(F5:F14) -> 18.5 | G15: =SUM(G5:G14) -> 18.5 | H15: =SUM(H5:H14) -> 0 | I15: =SUM(I5:I14) -> 0
A19: =Calculation!$C$86 -> Applicants are to refer to the Green Star SA - Existing Building Performance PILOT Technical Manual for explicit credit criteria and documentation requirements.

Sheet IEQ
A1: Green Star SA - Existing Building Performance PILOT | K1: Category Score
A2: Indoor Environment Quality | E2: Category Summary: | F2: =F18 -> 17 | G2: =G18 -> 17 | H2: =H18 -> 15.5 | I2: =I18 -> 0 | J2: =J18 -> 0 | K2: ='Credit Summary'!I22 -> 0
A3: Credit Summary for: | D3: =IF('Building Input'!$C$5=0,"",'Building Input'!$C$5) ->  | I3: =IF(OR((L3=Calculation!$D$97),(L3=Calculation!$D$98),((I2+J2)>H2)),Calculation!$D$99,"") ->  | L3: =T(L5:L16) -> 
A4: Ref No. | C4: Title | D4: Aim of Credit | E4: Credit Criteria Summary | F4: No. of Points Available | G4: No. of Points Available | H4: No. of Points Available | I4: No. of Points Achieved | J4: Points to be Confirmed | K4: Comments | L4: Comments
A5: EB- | B5: IEQ-1 | C5: Indoor Air Quality | D5: To recognize air management system attributes that provide occupants with high quality indoor air. | E5: 3 points are available as follows: Fresh Air Up to 2 points are awarded where it is demonstrated that for 95% of the Nominated Area, outside air is provided at rates greater than the l/s per person requirements of SANS 10400-O:2011, or naturally ventilated • 10% improvement for one point; • 33% improvement for two points; System performance 1 point is awarded where it is demonstrated that: • Appropriate filters are installed in all duct systems to avoid any dust infiltration through the air inlets. • A positive pressure is maintained in the occupied spaces to ensure no dust infiltration takes place through the building envelope • Fresh air intakes are positioned in locations in order to avoid the intake of outdoor pollutants. • The air distribution system is sufficiently circulating outdoor air to all occupied spaces. | F5: 3 | G5: =IF(I5="na",0,F5) -> 3 | H5: =IF(I5="na",0,G5) -> 3
A6: EB- | B6: IEQ-2 | C6: Lighting Comfort | D6: To recognize operational practices that provide occupants with a high degree of lighting comfort. | E6: 2 points are available as follows: Luminaire ballasts 1 point is awarded where high frequency electronic ballasts are employed in all flourescent luminaires in regular occupied spaces AND 95% of the Building’s usable area (UA) OR a Magnetic ballast replacement program is in place and being implemented within a 12 month period Lighting comfort 1 point is awarded where there is a process in place to monitor and measure lighting lux levels and achieve the performance parameters set out in this credit in regularly occupied spaces during the performance period, ensuring that lighting lux levels are appropriate to the tasks performed in each space. For all Multi-tenanted Buildings, the following applies: Where the landlord-occupied areas (landlord-tenanted space and common areas) comprise more than 10% of the GLA, half of the points available can be achieved for landlord compliance only. The remaining 50% of the points are awarded where tenants have committed to specific Tenant Criteria clauses requiring them to implement the targeted criteria as set out within the credit. The number of tenants who have committed to these clauses must be such that a minimum of 75% of the building GLA is compliant with the credit criteria (either through landlord or tenant commitment). See Technical Manual for Further Details | F6: 2 | G6: =IF(I6="na",0,F6) -> 2 | H6: =IF(I6="na",0,G6) -> 2
A7: EB- | B7: IEQ-3 | C7: Thermal Comfort | D7: To recognize operational practices that monitor and maintain a high level of thermal comfort for building occupants. | E7: 3 points are available as follows: Mechanically Ventilated spaces 1 point is awarded where there is a process in place to • Periodically measure temperature in occupied spaces. 1 point is awarded where there is a process in place to • Periodically measure humidity in occupied spaces. • Periodically assess air speed and radiant heat in occupied spaces through a high-level audit. • Gather occupant feedback through a thermal comfort survey feedback form. 1 additional point is awarded when the above is achieved and the predicted mean vote (PMV) levels, calculated in accordance with ISO7730 tables E.1 to E.9 using standard clothing and metabolic rates values, are within the following limits for at least 98% of occupied hours: • PMV levels between -1.0 and + 1.0 (inclusive) Naturally Ventilated spaces 1 point is awarded where there is a process in place to • Periodically measure temperature in occupied spaces. 1 point is awarded where there is a process in place to • Gather occupant feedback through a thermal comfort survey feedback form. 1 point is awarded when the above is achieved and the internal operative temperatures are within the ASHRAE Standard 55-2004 80% Acceptability Limits: | F7: 3 | G7: =IF(I7="na",0,F7) -> 3 | H7: 3
E8: For all Multi-tenanted Buildings, the following applies: Where the landlord-occupied areas (landlord-tenanted space and common areas) comprise more than 10% of the GLA, half of the points available can be achieved for landlord compliance only. The remaining 50% of the points are awarded where tenants have committed to specific Tenant Criteria clauses requiring them to implement the targeted criteria as set out within the credit. The number of tenants who have committed to these clauses must be such that a minimum of 75% of the building GLA is compliant with the credit criteria (either through landlord or tenant commitment). See Technical Manual for Further Details
A9: EB- | B9: IEQ-4 | C9: Occupant Survey | D9: To encourage the assessment of building occupants’ satisfaction as it relates to comfort and other building services performance issues. | E9: 2 points are available as follows: Occupant Survey 1 point is awarded where at least one occupant survey is conducted during the performance period. Occupant Satisfaction Levels Points will be awarded for a survey conducted during the measurement period, according to the below: Survey Outcome At least 80% of respondents indicate they are ‘Satisfied’, Points: 1 At least 60% of respondents indicate they are ‘Satisfied’, Points: 0.5 OR 0.5 points are awarded where performance improvement of 5% or more is achieved from the previous survey. 0.5 additional points will be granted where a corrective action plan is in place to improve performance. | F9: 2 | G9: =IF(I9="na",0,F9) -> 2 | H9: 2
A10: EB- | B10: IEQ-5 | C10: Acoustic Quality | D10: To encourage operational practices that monitor and maintain ambient noise indoor-levels from building interior and all outside sources at an appropriate and comfortable level, solve problems created by transference of sound to adjacent spaces and avoid excessive noise from the operations of the existing building to the immediate surrounding environment. | E10: 3 points are available as follows: Noise Levels- Internal and External sources Testing 0.5 points are awarded where there is a process in place to monitor and measure noise from building services and other interior and exterior sources during the performance period. Performance: 0.5 points are rewarded for maintaining acoustic comfort at acceptable levels for its particular space type and/or activity as defined inSANS10103:2008. Where noise levels are not in accordance with SANS10103:2008, the 0.5 points (for performance) are not achieved and a corrective action plan must be in place to achieve the required noise levels. | F10: 1 | G10: =IF(I10="na",0,F10) -> 1 | H10: 1
E11: Reverberation 1 Point is awarded as follows; Testing Where there is a process in place to monitor and measure the reverberation times in the nominated area during the performance period. Performance Projects are required to meet the specified criteria described below (AS/NZS 2107), or where the specified criteria are not achieved, a corrective action plan must be in place to achieve the required performance. | F11: 1 | G11: =IF(I11="na",0,F11) -> 1 | H11: 1
E12: Transference of Sound to adjacent space 0.5 points are awarded as follows: Testing Where there is a process in place to monitor, measure and mitigate problems caused by transference of noise and speech between nominated areas during the performance period, for its particular space type and/or activity, such as described below. (EN ISO 3382-3 and SANS10218:2012 Part 1). Performance Where the required performance as per these standards are not achieved, a corrective action plan must be in place to align with required performance levels. | F12: 0.5 | G12: =IF(I12="na",0,F12) -> 0.5 | H12: 0.5
E13: Noise from the existing building operations 0.5 points are awarded as follows; Testing Where there is a process in place to monitor, measure and maintain acceptable levels of noise caused by the building’s operations to the surrounding environment during the performance period. (Local Noise Control Regulations). Compliance with Local Noise Control regulations must be achieved to receive points under this criteria (no points rewarded for having corrective action plan in place). | F13: 0.5 | G13: =IF(I13="na",0,F13) -> 0.5
E14: For all Multi-tenanted Buildings, the following applies: Where the landlord-occupied areas (landlord-tenanted space and common areas) comprise more than 10% of the GLA, half of the points available can be achieved for landlord compliance only. The remaining 50% of the points are awarded where tenants have committed to specific Tenant Criteria clauses requiring them to implement the targeted criteria as set out within the credit. The number of tenants who have committed to these clauses must be such that a minimum of 75% of the building GLA is compliant with the credit criteria (either through landlord or tenant commitment). See Technical Manual for Further Details
A15: EB- | B15: IEQ-6 | C15: Daylight and Views | D15: To recognize the introduction of naturally lit spaces which provide occupants in regular occupied spaces with access to appropriate daylight and quality views for the activities being performed during the performance period. | E15: 2 points are available as follows: Daylight Access and Glare Control 1 point is awarded where occupants in 60% of regularly occupied spaces have access to appropriate amounts of daylight, as measured or as calculated for the occupied space during the performance period. A further 0.5 points are awarded where occupants in regularly occupied spaces have deemed to comply by showing proof of installed operational features. that reduce the discomfort of glare from natural light Views and Lines of Sight 0.5 points are awarded where occupants in 60% of regularly occupied spaces have a clear line of sight to high quality internal (day-lit atrium) or external views, providing a connection between indoor space and the outdoors, as measured from a deemed to satisfy approach. | F15: 2 | G15: =IF(I15="na",0,F15) -> 2 | H15: 2
A16: EB- | B16: IEQ-7 | C16: Indoor Pollutant Management | D16: To prevent pollutants coming from VOC’s, CO CO2 and printer pollutants built up by managing the pollutant source to help sustain the comfort and well-being of building occupants. | E16: 2 points are available as follows: Indoor Air Quality (IAQ) manager 1 point is awarded where an IAQ management plan is in place to optimise practices to prevent the pollutant built up in buildings for the well-being of the occupants, and where a specific IAQ manager responibility has been allocated. | F16: 1 | G16: =IF(I16="na",0,F16) -> 1 | H16: =IF(I16="na",0,G16) -> 1
E17: Regular Indoor Air Quality testing 1 point is awarded where annual testing of indoor air is carried out in regular occupied spaces and parking areas for carbon monoxide and carbon dioxide and where it exceeds limits a correction program needs to be implemented. | F17: 1 | G17: =IF(I17="na",0,F17) -> 1
E18: Total Points: | F18: =+SUM(F5:F17) -> 17 | G18: =SUM(G5:G17) -> 17 | H18: =SUM(H5:H16) -> 15.5 | I18: =SUM(I5:I17) -> 0 | J18: =SUM(J5:J17) -> 0
A22: =Calculation!$C$86 -> Applicants are to refer to the Green Star SA - Existing Building Performance PILOT Technical Manual for explicit credit criteria and documentation requirements.

Sheet Energy
A1: Green Star SA - Existing Building Performance PILOT | J1: Category Score
A2: Energy | E2: Category Summary: | F2: =F9 -> 27 | G2: =G9 -> 27 | H2: =H9 -> 0 | I2: =I9 -> 0 | J2: ='Credit Summary'!I27 -> 0
A3: Credit Summary for: | D3: =IF('Building Input'!$C$5=0,"",'Building Input'!$C$5) ->  | H3: =IF(OR((K3=Calculation!$D$97),(K3=Calculation!$D$98),((H2+I2)>G2)),Calculation!$D$99,"") ->  | K3: =T(K5:K8) -> 
A4: Ref No. | C4: Title | D4: Aim of Credit | E4: Credit Criteria Summary | F4: No. of Points Available | G4: No. of Points Available | H4: No. of Points Achieved | I4: Points to be Confirmed | J4: Comments | K4: Comments
A5: EB- | B5: Ene-1 | C5: Energy Consumption (GHGE) | D5: To encourage the reduction of greenhouse gas emissions associated with the use of energy in building operations. | E5: 25 points are available as follows: Minimum Requirements To be eligible for any points in this credit, an energy consumption baseline must be established.
E6: peak Electricity Demand performance A total of 2 points may be awarded where it is demonstrated that the building’s Peak Demand Performance meets the required benchmarks | F6: 25 | G6: =IF(H6="na",0,F6) -> 25
A7: EB- | B7: Ene-2 | C7: Peak Electricity Demand | D7: To recognize operational practices that reduce peak demand on electricity supply infrastructure. | E7: 2 points are awarded as follows: Minimum Requirement: Peak Electricity Demand Baseline. To be eligible for any points in this credit, a peak electricity demand baseline must be established.
E8: Peak Electricity Demand performance A total of 2 points may be awarded where it is demonstrated that the building’s Peak Demand Performance meets the required benchmarks set out in the credit (improvement on SANS 10400-XA where applicable, or improvement on a historical baseline where not). See Technical Manual for further details. | F8: 2 | G8: =IF(H8="na",0,F8) -> 2
E9: Total Points: | F9: =SUM(F5:F8) -> 27 | G9: =SUM(G5:G8) -> 27 | H9: =SUM(H5:H8) -> 0 | I9: =SUM(I5:I8) -> 0
A13: =Calculation!$C$86 -> Applicants are to refer to the Green Star SA - Existing Building Performance PILOT Technical Manual for explicit credit criteria and documentation requirements.

Sheet Transport
A1: Green Star SA - Existing Building Performance PILOT | J1: Category Score
A2: Transport | E2: Category Summary: | F2: =F7 -> 4 | G2: =G7 -> 4 | H2: =H7 -> 0 | I2: =I7 -> 0 | J2: ='Credit Summary'!I31 -> 0
A3: Credit Summary for: | D3: =IF('Building Input'!$C$5=0,"",'Building Input'!$C$5) ->  | H3: =IF(OR((K3=Calculation!$D$97),(K3=Calculation!$D$98),((H2+I2)>G2)),Calculation!$D$99,"") ->  | K3: =T(K5:K5) -> 
A4: Ref No. | C4: Title | D4: Aim of Credit | E4: Credit Criteria Summary | F4: No. of Points Available | G4: No. of Points Available | H4: No. of Points Achieved | I4: Points to be Confirmed | J4: Comments | K4: Comments
A5: EB- | B5: Tra-1 | C5: Alternative Transportation | D5: To measure and promote/encourage the use of alternative transportation modes for commuting and as a result reduce pollution and land development impacts from automobile use. | E5: Four points are available as follows: Transportation Modes Survey 1 point is awarded where a Transportation Modes Survey, aimed at the regular occupants of the building(s), is delivered during the performance period. Transient occupants/visitors must be surveyed if either the typical peak or daily average is greater than the number of regular building occupants. Green Travel Plan – Regular Occupants and Visitors 2 points are awarded where an Alternative Transportation Programme that addresses regular occupants, of the project building(s), is in place and operational during the performance period. Transient occupants/visitors must be surveyed if either the typical peak or daily average is greater than the number of regular building occupants. | F5: 3 | G5: =IF(H5="na",0,F5) -> 3
E6: Improved Transportation Modes Performance 1 additional point is awarded where there has been a follow-up Transportation Modes Survey Conducted which shows at least 10% reduction in single occupant car drivers. | F6: 1 | G6: =IF(OR((H6="na"),(I6="na")),0,F6) -> 1
E7: Total Points: | F7: =SUM(F5:F6) -> 4 | G7: =SUM(G5:G6) -> 4 | H7: =SUM(H5:H6) -> 0 | I7: =SUM(I5:I6) -> 0
A11: =Calculation!$C$86 -> Applicants are to refer to the Green Star SA - Existing Building Performance PILOT Technical Manual for explicit credit criteria and documentation requirements.

Sheet Water
A1: Green Star SA - Existing Building Performance PILOT | J1: Category Score
A2: Water | E2: Category Summary: | F2: =F6 -> 12 | G2: =G6 -> 12 | H2: =H6 -> 0 | I2: =I6 -> 0 | J2: ='Credit Summary'!I35 -> 0
A3: Credit Summary for: | D3: =IF('Building Input'!$C$5=0,"",'Building Input'!$C$5) ->  | H3: =IF(OR((K3=Calculation!$D$97),(K3=Calculation!$D$98),((H2+I2)>G2)),Calculation!$D$99,"") ->  | K3: =T(K5:K5) -> 
A4: Ref No. | C4: Title | D4: Aim of Credit | E4: Credit Criteria Summary | F4: No. of Points Available | G4: No. of Points Available | H4: No. of Points Achieved | I4: Points to be Confirmed | J4: Comments | K4: Comments
A5: EB- | B5: Wat-1 | C5: Potable Water | D5: To recognise efficient potable water use associated with building operations thus reducing the burden on potable water supply and wastewater systems. | E5: 12 points are awarded as follows: Potable Water Performance A total of 12 points may be awarded where percentage reductions in potable water use associated with operations are achieved during the performance period. Points are awarded for improvement in water efficiency compared to either an industry benchmark (see GSSA Energy & Water Benchmarking Tool for Office buildings) or a notional benchmark calculated using the Potable Water Calculator up to a maximum of 12 points. AND 1 point is awarded where there is proven water saving during the last 6 months of the performance period compared to same period in previous year if the total potential points are not fully targeted in water efficiency. A further 1 point is rewarded where this water saving exceeds 10%. | F5: 12 | G5: =IF(H5="na",0,F5) -> 12
E6: Total Points: | F6: =SUM(F5:F5) -> 12 | G6: =SUM(G5:G5) -> 12 | H6: =SUM(H5:H5) -> 0 | I6: =SUM(I5:I5) -> 0
A10: =Calculation!$C$86 -> Applicants are to refer to the Green Star SA - Existing Building Performance PILOT Technical Manual for explicit credit criteria and documentation requirements.

Sheet Materials
A1: Green Star SA - Existing Building Performance PILOT | J1: Category Score
A2: Materials | E2: Category Summary: | F2: =F14 -> 12 | G2: =G14 -> 12 | H2: =H14 -> 0 | I2: =I14 -> 0 | J2: ='Credit Summary'!I40 -> 0
A3: Credit Summary for: | D3: =IF('Building Input'!$C$5=0,"",'Building Input'!$C$5) ->  | H3: =IF(OR((K3=Calculation!$D$97),(K3=Calculation!$D$98),((H2+I2)>G2)),Calculation!$D$99,"") ->  | K3: =T(K5:K13) -> 
A4: Ref No. | C4: Title | D4: Aim of Credit | E4: Credit Criteria Summary | F4: No. of Points Available | G4: No. of Points Available | H4: No. of Points Achieved | I4: Points to be Confirmed | J4: Comments | K4: Comments
A5: EB- | B5: Mat-1 | C5: Procurement and Purchasing | D5: To recognise procurement and purchasing practices which encourage use of products that are environmentally preferable. | E5: Up to 6 points are awarded as follows: Sustainable Procurement Policy 1 point will be awarded where there is evidence of a sustainable procurement policy that has been put in place during the performance period. | F5: 1 | G5: =IF(H5="na",0,F5) -> 1
E6: Sustainable Procurement: Operational Consumables Points will be awarded under this credit where total operational consumables by cost, during the performance period, meet the stipulated sustainability criteria and according to below. Portion of operational consumables meeting sustainability criteria: 20% for 0.5 Points 40% for 1 Point 60% for 1.5 Points. | F6: 1.5 | G6: =IF(H6="na",0,F6) -> 1.5
E7: Sustainable Procurement of construction materials building refurbishment, alteration and extension (if applicable) Points will be awarded where total construction materials purchased during the performance period by cost meet sustainability criteria stipulated under the Compliance Requirements section of this credit. Portion of operational consumables meeting sustainability criteria: 20% for 0.5 Points 40% for 1 Point 60% for 1.5 Points. | F7: 1.5 | G7: =IF(OR((H7="na"),(I7="na")),0,F7) -> 1.5
E8: Sustainable Procurement: Furniture and Movable Equipment Points will be awarded under this credit where total furniture and movable equipment purchases by cost, during the performance period, meet the stipulated sustainability criteria and according to below. Portion of furniture and movable equipment meeting sustainability criteria: 50% for 0.5 Points 75% for 1 Point | F8: 1 | G8: =IF(OR((H8="na"),(I8="na")),0,F8) -> 1
E9: Life Cycle Assessment 1 point can be awarded where there is evidence that procurement decision made incorporate life cycle analysis. For all Multi-tenanted Buildings, the following applies: Where the landlord-occupied areas (landlord-tenanted space and common areas) comprise more than 10% of the GLA, half of the points available can be achieved for landlord compliance only. The remaining 50% of the points are awarded where tenants have committed to specific Tenant Criteria clauses requiring them to implement the targeted criteria as set out within the credit. The number of tenants who have committed to these clauses must be such that a minimum of 75% of the building GLA is compliant with the credit criteria (either through landlord or tenant commitment). See Technical Manual for Further Details | F9: 1 | G9: =IF(OR((H9="na"),(I9="na")),0,F9) -> 1
A10: EB- | B10: Mat-2 | C10: Solid Waste Management | D10: To reward operational practices which reduce the amount of solid waste going to landfill. Such waste may be from typical building operations, including ongoing and durable goods, and from refurbishments, construction or demolition works. | E10: Up to 6 points are awarded as follows: Solid Waste Management Policy 1 Point is awarded where a compliant Solid Waste Management Policy for Ongoing Consumables, Hazardous Materials, Movable and Electronic Goods and Construction Waste from Churn and Alterations has to be in place during the performance period. *Note – for PILOT projects only, the Waste and Materials Management Policy need not be implemented in the performance period, but must have been produced. Waste Stream Audit of Ongoing Consumables and development of an Operational Waste Management Plan 1 point is awarded where a building carries out a waste stream audit of the building’s entire ongoing consumable waste stream to establish a baseline that identifies the types and amounts of waste making up the waste stream, thereby identifying opportunities for increased waste minimisation, recycling and waste diversion. An operational waste management plan (OWMP) must be developed on the basis of this audit and to outline clearly opportunities for waste minimisation. | F10: 2 | G10: =IF(H10="na",0,F10) -> 2
E11: Waste to Landfill Diversion: Operational Waste 2 points are awarded where the following percentages of operational waste are diverted from landfill during the performance period: 25% = 1 point 50% = 1.5 points 75% = 2 points and where no hazardous waste (e.g. CFL lamps) and batteries enter the operational waste stream and are collected through a separate and documented process. 1 point is awarded where overall operational waste generated (volume) has been reduced by at least 10% over a 12 months period when compared to the baseline month at the beginning of the performance period. | F11: 3 | G11: =IF(H11="na",0,F11) -> 3
E12: Waste to Landfill Diversion: Movable and/or Electronic Goods 0.5 points are awarded where 75% of all movable goods waste is diverted from landfill during the performance period and where no electronic goods enter the movable goods waste stream and are collected and responsibly managed through a separate and documented collection process. | F12: 0.5 | G12: =IF(OR((H12="na"),(I12="na")),0,F12) -> 0.5
E13: Waste to Landfill Diversion: Construction Waste–Churn and Alterations 0.5 points are awarded where 50% of total construction waste from churn and alterations generated during the performance period is diverted from landfill during the performance period. This credit is N/A if no churn or alterations took place during the performance period. | F13: 0.5 | G13: =IF(OR((H13="na"),(I13="na")),0,F13) -> 0.5
E14: Total Points: | F14: =SUM(F5:F13) -> 12 | G14: =SUM(G5:G13) -> 12 | H14: =SUM(H5:H13) -> 0 | I14: =SUM(I5:I13) -> 0
A18: =Calculation!$C$86 -> Applicants are to refer to the Green Star SA - Existing Building Performance PILOT Technical Manual for explicit credit criteria and documentation requirements.

Sheet Land Use & Ecology
A1: Green Star SA - Existing Building Performance PILOT | J1: Category Score
A2: Land Use & Ecology | E2: Category Summary: | F2: =F10 -> 5 | G2: =G10 -> 5 | H2: =H10 -> 0 | I2: =I10 -> 0 | J2: ='Credit Summary'!I45 -> 0
A3: Credit Summary for: | D3: =IF('Building Input'!$C$5=0,"",'Building Input'!$C$5) ->  | H3: =IF(OR((K3=Calculation!$D$97),(K3=Calculation!$D$98),((H2+I2)>G2)),Calculation!$D$99,"") ->  | K3: =T(K5:K9) -> 
A4: Ref No. | C4: Title | D4: Aim of Credit | E4: Credit Criteria Summary | F4: No. of Points Available | G4: No. of Points Available | H4: No. of Points Achieved | I4: Points to be Confirmed | J4: Comments | K4: Comments
A5: EB- | B5: Eco-1 | C5: Ecological and Site Management | D5: To recognise and encourage practices which maintain the ecological value, reduce negative environmental impact and enhance the provision of ecological services of the site. | E5: Ecological Assessment – Minimum Requirement An Ecological Assessment of the site must be undertaken.
E6: Ecological Policy & Management Plan 2 points are awarded if an Ecological Management Plan is in place for continuous management and enhancement of ecosystem services of the site. The Ecological Management Plan must include a Policy statement regarding the overall intentions for ecological management of the site. The Management Plan should be actively implemented and monitored during the performance period. This Credit can be claimed as 'Not Applicable' where less than 25% of the site area (excluding building footprint), or 5% of the total site area (including the building footprint)—whichever is greater, is made up of natural vegetation. Enter "na" in the 'No. of Points Achieved' column. | F6: 2 | G6: =IF(H6="na",0,F6) -> 2
A7: EB- | B7: Eco-2 | C7: Groundskeeping Practices | D7: To encourage environmentally sensitive landscape, hard surfaces and building exterior maintenance practices that reduce the environmental impact and improve ecological value. | E7: 3 points are available as follows: Site Maintenance – Landscape Management and Maintenance Plan 1 point is awarded where a plan is in place that details the site management of landscaped areas according to leading practice methods and is actively implemented and monitored during the performance period Where the building location or the building type does not allow for or include landscaped areas, the Landscape Management Plan' point can be claimed as 'Not Applicable'. Enter "na" in the 'No. of Points Achieved' column. | F7: 1 | G7: =IF(H7="na",0,F7) -> 1
E8: Site Maintenance – Hard Surfaces and Building Exterior Management Plan 1 point is awarded where a plan is in place that details the management of hard surfaces and the building exterior according to leading practice methods and is actively implemented and monitored during the performance period | F8: 1 | G8: =IF(H8="na",0,F8) -> 1
E9: Site Maintenance – Integrated Pest Management Plan 1 point is awarded where an Integrated Pest Management Plan for indoor and outdoor pest management is in place and actively implemented and monitored during the performance period. | F9: 1 | G9: =IF(H9="na",0,F9) -> 1
E10: Total Points: | F10: =SUM(F5:F9) -> 5 | G10: =SUM(G5:G9) -> 5 | H10: =SUM(H5:H9) -> 0 | I10: =SUM(I5:I9) -> 0
A14: =Calculation!$C$86 -> Applicants are to refer to the Green Star SA - Existing Building Performance PILOT Technical Manual for explicit credit criteria and documentation requirements.
O17: Options | Q17: Result | R17: Yes
O18: Yes
O19: No
O21: Eco- Conditional Requirement met
O22: Eco- Conditional Requirement NOT met
O24: The project team acknowledges that the design meets the conditional requirements as stipulated in the Green Star SA Existing Building Performance PILOT Technical Manual. Green Star SA projects are only eligible for formal certification by the GBCSA when ALL Eligibility Criterion (and Conditional Requirements) are met. Please refer to the Technical Manual for further information.
O25: The project team acknowledges that the design does NOT meet the conditional requirements as stipulated in the Green Star SA Existing Building Performance PILOT Technical Manual. This Green Star SA project is therefore NOT eligible for formal certification by the GBCSA. Please refer to the Technical Manual for further information.

Sheet Emissions
A1: Green Star SA - Existing Building Performance PILOT | J1: Category Score
A2: Emissions | E2: Category Summary: | F2: =F10 -> 4.5 | G2: =G10 -> 4.5 | H2: =H10 -> 0 | I2: =I10 -> 0 | J2: ='Credit Summary'!I51 -> 0
A3: Credit Summary for: | D3: =IF('Building Input'!$C$5=0,"",'Building Input'!$C$5) ->  | H3: =IF(OR((K3=Calculation!$D$97),(K3=Calculation!$D$98),((H2+I2)>G2)),Calculation!$D$99,"") ->  | K3: =T(K5:K8) -> 
A4: Ref No. | C4: Title | D4: Aim of Credit | E4: Credit Criteria Summary | F4: No. of Points Available | G4: No. of Points Available | H4: No. of Points Achieved | I4: Points to be Confirmed | J4: Comments | K4: Comments
A5: EB- | B5: Emi-1 | C5: Refrigerants | D5: To encourage operational practices that minimise the environmental impacts of refrigeration equipment. | E5: Minimum Requirements A gradual replacement policy shall be in place to replace all equipment with low Ozone Depletion Potential (ODP) refrigerant equipment.
E6: Refrigerants Impacts 1 point is awarded where at least 80% of total refrigerant mass serving the building is low ozone depletion potential (ODP) refrigerants. AND The remaining or all of the refrigerant mass is subject to leak auditing and leak testing or a continuous leak detection system during the performance period. An additional 1 point is awarded where at least 80% of the total refrigerant mass serving the building is low global warming potential (GWP) refrigerants. Where no refrigerants are used in the building, both points above are awarded. | F6: 2 | G6: =IF(H6="na",0,F6) -> 2
A7: EB- | B7: Emi-2 | C7: Legionella | D7: To recognise and encourage building management systems which effectively manage the risk of Legionnaires’ disease. | E7: 1 point is available as follows: Risk Management 0.5 points are awarded where there is a process to manage overall risk presented by Legionnaires’ disease during the performance period. Furthermore, it should be demonstrated that such a risk management process is monitored and reviewed regularly as per SANS 893 Part 1. Control of Legionella in water systems 0.5 points are awarded where there is an effective programme for treatment and control of Legionnaires’ disease in water systems during the performance period as per SANS 893 Part 2. | F7: 1 | G7: =IF(H7="na",0,F7) -> 1
B8: Emi-3 | C8: Stormwater | D8: To recognize site-related practices which limit the disruption of natural hydrology, minimize pollution and site deterioration. | E8: 1.5 points are awarded as follows: Stormwater Run-off Management 0.5 points are awarded if a Storm Water Run-Off Management plan is implemented that ensures that the site and hard surfaces are managed by infiltration, collecting and re-using storm water runoff of the precipitation falling on site (including the roof area) as well as filtering pollutants to reduce or eliminate contamination of ground water, streams and rivers. Stormwater Quantity 0.5 additional points are awarded where implementation of an annual inspection program of all storm water facilities to confirm continued performance, was done, where peak storm water flows are calculated and disclosed for the performance period and required maintenance that was assessed was implemented | F8: 1 | G8: =IF(H8="na",0,F8) -> 1
E9: Stormwater Run-off Reduction 0.5 additional points are awarded when the following strategies for 15% portion of the site hard surfaces are applied: Reducing Paving Surfaces and increasing maintained landscaping or modify areas to open-grid pavement system (which is at least 50% pervious) OR if the existing site has hard surfaces (hardscapes) that account for less than 5% of the site (excluding building footprint). | F9: 0.5 | G9: =IF(H9="na",0,0.5) -> 0.5
E10: Total Points: | F10: =SUM(F5:F9) -> 4.5 | G10: =SUM(G5:G9) -> 4.5 | H10: =SUM(H5:H9) -> 0 | I10: =SUM(I5:I9) -> 0
A14: =Calculation!$C$86 -> Applicants are to refer to the Green Star SA - Existing Building Performance PILOT Technical Manual for explicit credit criteria and documentation requirements.

Sheet Innovation
A1: Green Star SA - Existing Building Performance PILOT | I1: Category Score
A2: Innovation | E2: Category Summary: | F2: =F8 -> 10 | G2: =G8 -> 0 | H2: =H8 -> 0 | I2: ='Credit Summary'!I58 -> 0
A3: Credit Summary for: | D3: =IF('Building Input'!$C$5=0,"",'Building Input'!$C$5) ->  | G3: =IF(OR((J3=Calculation!$D$97),(J3=Calculation!$D$98),((G2+H2)>F2)),Calculation!$D$99,"") ->  | J3: =T(K5:K17) -> 
A4: Ref No. | C4: Title | D4: Aim of Credit | E4: Credit Criteria Summary | F4: No. of Points Available | G4: No. of Points Achieved | H4: Points to be Confirmed | I4: Comments
A5: EB- | B5: Inn-1 | C5: Innovative Strategies & Technologies | D5: To encourage and recognise pioneering initiatives, processes or strategies in sustainable building management and operations. | E5: Up to two points are awarded for an innovation initiative where: • The initiative improving environmental performance is a technology or process that is considered a ‘first’ in South Africa or in the World; OR • The initiative substantially contributes to the broader market transformation towards sustainable development in South Africa or in the World. Points are awarded as follows: • One point is awarded when either of the above is true for the South African market; OR • Two points are awarded when either of the above is true for the Global market Up to ten innovation initiatives can be awarded points under this credit, but no individual initiative can achieve more than two points in this credit. Qualifying initiatives may achieve additional points in other Innovation Credits, however the maximum points available for any one building assessment under Inn-1, Inn-2 and Inn-3 is ten (in total). | F5: 10 | J5: =IF(OR(ISTEXT(G5)=TRUE,ISTEXT(H5)=TRUE),Calculation!$D$100,IF(G5+H5>10,Calculation!$D$97,"")) -> 
A6: EB- | B6: Inn-2 | C6: Exceeding Green Star SA Benchmarks | D6: To encourage and recognise projects that achieve environmental benefits in excess of the current Green Star SA benchmarks. | E6: Up to two points are awarded where there has been a substantial improvement on an existing Green Star SA credit, as follows: • One point for a solution that results in the elimination of the specific negative environmental impact of the project targeted by an existing credit; and • Two points for a solution that results in a substantial (e.g. 5% or greater above ‘neutral’) restorative environmental impact targeted by an existing credit. Up to ten innovation initiatives can be awarded points under this credit, but no individual initiative can achieve more than two points in this credit. Qualifying initiatives may achieve additional points in other Innovation Credits, however the maximum points available for any one building assessment under Inn-1, Inn-2 and Inn-3 is ten (in total). | J6: =IF(OR(ISTEXT(G6)=TRUE,ISTEXT(H6)=TRUE),Calculation!$D$100,IF(G6+H6>10,Calculation!$D$97,"")) -> 
A7: EB- | B7: Inn-3 | C7: Environmental Initiatives | D7: To encourage and recognise sustainable building initiatives, processes or strategies that are currently outside of the scope of this Green Star SA rating tool but which have a substantial or significant environmental benefit. | E7: One point is awarded where: • An initiative implemented in the building viably addresses a valid environmental concern outside of the current scope of this Green Star SA tool. Up to ten innovation initiatives can be awarded points under this credit, but no individual initiative can achieve more than one point in this credit. Qualifying initiatives may achieve additional points in other Innovation Credits, however the maximum points available for any one building assessment under Inn-1, Inn-2 and Inn-3 is ten (in total). | J7: =IF(OR(ISTEXT(G7)=TRUE,ISTEXT(H7)=TRUE),Calculation!$D$100,IF(G7+H7>10,Calculation!$D$97,"")) -> 
E8: Total Points: | F8: =SUM(F5:F7) -> 10 | G8: =SUM(G5:G7) -> 0 | H8: =SUM(H5:H7) -> 0
A12: =Calculation!$C$86 -> Applicants are to refer to the Green Star SA - Existing Building Performance PILOT Technical Manual for explicit credit criteria and documentation requirements.

Sheet Credit Summary
A1: Green Star SA - Existing Building Performance PILOT | I1: Credit Summary
A2: =IF('Building Input'!$C$5=0,"",'Building Input'!$C$5) -> 
A3: Category | B3: Title | C3: Credit No. | D3: Points Available | E3: Points Achieved | G3: Points to be Confirmed | I3: Percent of Available Points Achieved
A5: Management
B6: =Management!C5 -> Certified Buildings | C6: Man-1 | D6: =Management!G5 -> 1 | E6: =Management!H5 -> 0 | G6: =Management!I5 -> 0 | H6: =Management!K5 -> 0
B7: =Management!C6 -> Accredited Professional | C7: Man-2 | D7: =Management!G6 -> 1 | E7: =Management!H6 -> 0 | G7: =Management!I6 -> 0 | H7: =IF(OR(Management!K6="ERROR", Management!#REF!="ERROR"),"ERROR","") -> 
B8: =Management!C7 -> Building Management | C8: Man-3 | D8: =SUM(Management!G7:G8) -> 5 | E8: =SUM(Management!H7:H8) -> 0 | G8: =SUM(Management!I7:I8) -> 0 | H8: =Management!K7 -> 0
B9: =Management!C9 -> Green Cleaning Performance | C9: Man-4 | D9: =SUM(Management!G9:G12) -> 3.5 | E9: =SUM(Management!H9:H12) -> 0 | G9: =Management!I9 -> 0 | H9: =Management!K9 -> 0
B10: =Management!C13 -> Green Leasing | C10: Man-5 | D10: =Management!G13 -> 6 | E10: =Management!H13 -> 0 | G10: =Management!I13 -> 0 | H10: =Management!K13 -> 0
B11: =Management!C14 -> Ongoing Monitoring and Metering | C11: Man-6 | D11: =Management!G14 -> 2 | E11: =Management!H14 -> 0 | G11: =Management!I14 -> 0 | H11: =Management!K14 -> 0
C12: TOTAL | D12: =Management!G15 -> 18.5 | E12: =Management!H15 -> 0 | G12: =Management!I15 -> 0 | I12: =IF(D12=0, 0, E12/D12) -> 0
A14: Indoor Environment Quality
B15: =IEQ!C5 -> Indoor Air Quality | C15: IEQ-1 | D15: =IEQ!H5 -> 3 | E15: =IEQ!I5 -> 0 | G15: =IEQ!J5 -> 0 | H15: =IEQ!L5 -> 0
B16: =IEQ!C6 -> Lighting Comfort | C16: IEQ-2 | D16: =IEQ!H6 -> 2 | E16: =IEQ!I6 -> 0 | G16: =IEQ!J6 -> 0 | H16: =IEQ!L6 -> 0
B17: =IEQ!C7 -> Thermal Comfort | C17: IEQ-3 | D17: =IEQ!H7 -> 3 | E17: =IEQ!I7 -> 0 | G17: =IEQ!J7 -> 0 | H17: =IEQ!L7 -> 0
B18: =IEQ!C9 -> Occupant Survey | C18: IEQ-4 | D18: =IEQ!H9 -> 2 | E18: =IEQ!I9 -> 0 | G18: =IEQ!J9 -> 0 | H18: =IEQ!L9 -> 0
B19: =IEQ!C10 -> Acoustic Quality | C19: IEQ-5 | D19: 3 | E19: =SUM(IEQ!I10:I14) -> 0 | G19: =SUM(IEQ!J10:J14) -> 0 | H19: =IEQ!L10 -> 0
B20: =IEQ!C15 -> Daylight and Views | C20: IEQ-6 | D20: =IEQ!H15 -> 2 | E20: =IEQ!I15 -> 0 | G20: =IEQ!J15 -> 0 | H20: =IEQ!L15 -> 0
B21: =IEQ!C16 -> Indoor Pollutant Management | C21: IEQ-7 | D21: 2 | E21: =SUM(IEQ!I16:I17) -> 0 | G21: =SUM(IEQ!J16:J17) -> 0 | H21: =IEQ!L16 -> 0
C22: TOTAL | D22: =IEQ!G18 -> 17 | E22: =IEQ!I18 -> 0 | G22: =IEQ!J18 -> 0 | I22: =IF(D22=0, 0, E22/D22) -> 0
A24: Energy
B25: =Energy!C5 -> Energy Consumption (GHGE) | C25: Ene-1 | D25: =Energy!G5+Energy!G6 -> 25 | E25: =(Energy!H6) -> 0 | G25: =Energy!I5+Energy!I6 -> 0 | H25: =IF(OR(Energy!K5="ERROR",Energy!K6="ERROR"),"ERROR","") -> 
B26: =Energy!C7 -> Peak Electricity Demand | C26: Ene-2 | D26: =Energy!G7+Energy!G8 -> 2 | E26: =Energy!H8 -> 0 | G26: =Energy!I7+Energy!I8 -> 0 | H26: =IF(OR(Energy!K7="ERROR",Energy!K8="ERROR"),"ERROR","") -> 
C27: TOTAL | D27: =Energy!G9 -> 27 | E27: =Energy!H9 -> 0 | G27: =Energy!I9 -> 0 | I27: =IF(D27=0, 0, E27/D27) -> 0
A29: Transport
B30: =Transport!C5 -> Alternative Transportation | C30: Tra-1 | D30: 4 | E30: =SUM(Transport!H5:H6) -> 0 | G30: =SUM(Transport!I5:I6) -> 0 | H30: =Transport!K5 -> 0
C31: TOTAL | D31: =Transport!G7 -> 4 | E31: =Transport!H7 -> 0 | G31: =Transport!I7 -> 0 | I31: =IF(D31=0, 0, E31/D31) -> 0
A33: Water
B34: =Water!C5 -> Potable Water | C34: Wat-2 | D34: =Water!G5 -> 12 | E34: =Water!H5 -> 0 | G34: =Water!I5 -> 0 | H34: =Water!#REF! -> 
C35: TOTAL | D35: =Water!G6 -> 12 | E35: =Water!H6 -> 0 | G35: =Water!I6 -> 0 | I35: =IF(D35=0, 0, E35/D35) -> 0
A37: Materials
B38: =Materials!C5 -> Procurement and Purchasing | C38: Mat-1 | D38: 6 | E38: =SUM(Materials!H5:H9) -> 0 | G38: =SUM(Materials!I5:I9) -> 0 | H38: =Materials!K5 -> 0
B39: =Materials!C10 -> Solid Waste Management | C39: Mat-2 | D39: 6 | E39: =SUM(Materials!H10:H13) -> 0 | G39: =SUM(Materials!I10:I13) -> 0 | H39: =Materials!K10 -> 0
C40: TOTAL | D40: =Materials!G14 -> 12 | E40: =Materials!H14 -> 0 | G40: =Materials!I14 -> 0 | I40: =IF(D40=0, 0, E40/D40) -> 0
A42: Land Use & Ecology
B43: ='Land Use & Ecology'!C5 -> Ecological and Site Management | C43: Eco-1 | D43: =('Land Use & Ecology'!G5+'Land Use & Ecology'!G6) -> 2 | E43: =SUM('Land Use & Ecology'!H5:H6) -> 0 | G43: ='Land Use & Ecology'!I5 -> 0 | H43: ='Land Use & Ecology'!K5 -> 0
B44: Grounds-keeping Practices | C44: Eco-2 | D44: 3 | E44: =SUM('Land Use & Ecology'!H7:H9) -> 0 | G44: ='Land Use & Ecology'!I9 -> 0 | H44: ='Land Use & Ecology'!K9 -> 0
C45: TOTAL | D45: ='Land Use & Ecology'!G10 -> 5 | E45: ='Land Use & Ecology'!H10 -> 0 | G45: ='Land Use & Ecology'!I10 -> 0 | I45: =IF(D45=0, 0, E45/D45) -> 0
A47: Emissions
B48: =Emissions!C5 -> Refrigerants | C48: Emi-1 | D48: =(Emissions!G6) -> 2 | E48: =SUM(Emissions!H5:H6) -> 0 | G48: =Emissions!I5+Emissions!I6 -> 0 | H48: =Emissions!K5 -> 0
B49: =Emissions!C7 -> Legionella | C49: Emi-2 | D49: =(Emissions!G7) -> 1 | E49: =Emissions!H7 -> 0 | G49: =Emissions!I7 -> 0
B50: =Emissions!C8 -> Stormwater | C50: Emi-3 | D50: 1.5 | E50: =SUM(Emissions!H8:H9) -> 0 | G50: =SUM(Emissions!I8:I9) -> 0 | H50: =IF(OR(Emissions!K8="ERROR",Emissions!#REF!="ERROR"),"ERROR","") -> 
C51: TOTAL | D51: =Emissions!G10 -> 4.5 | E51: =Emissions!H10 -> 0 | G51: =Emissions!I10 -> 0 | I51: =IF(D51=0, 0, E51/D51) -> 0
B52: Total Points Available: | C52: =SUM(D12,D22,D27,D31,D35,D40,D45,D51) -> 100 | I52: Score Achieved (Excl Inn): | J52: =C53/C52*100 -> 0
B53: Total Points Achieved: | C53: =SUM(E12,E22,E27,E31,E35,E40,E45,E51) -> 0
A54: Innovation
B55: =Innovation!C5 -> Innovative Strategies & Technologies | C55: =Innovation!A5 -> EB- | D55: =Innovation!F5 -> 10 | E55: =Innovation!G5 -> 0 | G55: =Innovation!H5 -> 0 | H55: =Innovation!J5 -> 
B56: =Innovation!C6 -> Exceeding Green Star SA Benchmarks | C56: =Innovation!A6 -> EB- | D56: 10 | E56: =Innovation!G6 -> 0 | G56: =Innovation!H6 -> 0 | H56: =Innovation!J6 -> 
B57: =Innovation!C7 -> Environmental Initiatives | C57: =Innovation!A7 -> EB- | D57: 10 | E57: =Innovation!G7 -> 0 | G57: =Innovation!H7 -> 0 | H57: =Innovation!J7 -> 
C58: TOTAL | D58: =Innovation!F8 -> 10 | E58: =Innovation!G8 -> 0 | F58: =Innovation!J7 ->  | G58: =Innovation!H8 -> 0 | I58: =E58 -> 0
I60: Total Score Achieved: | J60: =J52+E58 -> 0
A65: The GBCSA does not endorse any self-assessed rating achieved by the use of Green Star SA - Existing Building Performance PILOT. This service provides for independent third party review of points claimed to ensure all points can be demonstrated to be achieved by the provision of the necessary documentary evidence. The use of Green Star SA - Existing Building Performance PILOT without formal certification by the GBCSA does not entitle the user or any other party to promote the Green Star SA rating achieved. | I65: Weighted Score | J65: Rating
I67: 10-19 | J67: One Star
I68: 20-29 | J68: Two Star
I69: 30-44 | J69: Three Star
I70: 45-59 | J70: Four Star
I71: 60-74 | J71: Five Star
I72: 75+ | J72: Six Star

Sheet Graphical Summary
B1: =Calculation!N31 -> Green Star SA - Existing Building Performance PILOT
B3: Summary for: | D3: =IF('Building Input'!$C$5=0,"",'Building Input'!$C$5) -> 
B5: =IF('Credit Summary'!J60<10,"No official GBCSA rating possible. Minimum total score of 10 points required for certification","The number of points inputted would equate to a "&Calculation!C61&" rating, once certified.") -> No official GBCSA rating possible. Minimum total score of 10 points required for certification
C29: =Calculation!C55 -> 
C30: =Calculation!B58 -> 

Sheet Calculation (hidden)
B1: Green Star SA - Existing Building Performance PILOT | G1: =N25 -> New Building
B2: Credit Summary for: | C2: =IF('Building Input'!$C$5=0,"",'Building Input'!$C$5) -> 
A6: Category Weightings
C7: STATE BASED WEIGHTING FACTORS
B8: Baseline | C8: Gauteng | D8: W Cape | E8: E Cape | F8: N Cape | G8: KZN | H8: Limpopo | I8: N West | J8: Free State | K8: Mpumalanga | L8: State list
A9: Management | B9: 0.09 | C9: 0.09 | D9: 0.09 | E9: 0.09 | F9: 0.09 | G9: 0.09 | H9: 0.09 | I9: 0.09 | J9: 0.09 | K9: 0.09 | L9: 1 | M9: Gauteng
A10: Indoor Environment Quality | B10: 0.15 | C10: 0.15 | D10: 0.15 | E10: 0.15 | F10: 0.15 | G10: 0.15 | H10: 0.15 | I10: 0.15 | J10: 0.15 | K10: 0.15 | L10: 2 | M10: W Cape
A11: Energy | B11: 0.25 | C11: 0.25 | D11: 0.25 | E11: 0.25 | F11: 0.25 | G11: 0.25 | H11: 0.25 | I11: 0.25 | J11: 0.25 | K11: 0.25 | L11: 3 | M11: E Cape
A12: Transport | B12: 0.09 | C12: 0.09 | D12: 0.09 | E12: 0.09 | F12: 0.09 | G12: 0.09 | H12: 0.09 | I12: 0.09 | J12: 0.09 | K12: 0.09 | L12: 4 | M12: N Cape
A13: Water | B13: 0.14 | C13: 0.14 | D13: 0.14 | E13: 0.14 | F13: 0.14 | G13: 0.14 | H13: 0.14 | I13: 0.14 | J13: 0.14 | K13: 0.14 | L13: 5 | M13: KZN
A14: Materials | B14: 0.13 | C14: 0.13 | D14: 0.13 | E14: 0.13 | F14: 0.13 | G14: 0.13 | H14: 0.13 | I14: 0.13 | J14: 0.13 | K14: 0.13 | L14: 6 | M14: Limpopo
A15: Land use & Ecology | B15: 0.07 | C15: 0.07 | D15: 0.07 | E15: 0.07 | F15: 0.07 | G15: 0.07 | H15: 0.07 | I15: 0.07 | J15: 0.07 | K15: 0.07 | L15: 7 | M15: N West
A16: Emissions | B16: 0.08 | C16: 0.08 | D16: 0.08 | E16: 0.08 | F16: 0.08 | G16: 0.08 | H16: 0.08 | I16: 0.08 | J16: 0.08 | K16: 0.08 | L16: 8 | M16: Free State
L17: 9 | M17: Mpumalanga
B18: =SUM(B9:B16) -> 1 | C18: =SUM(C9:C16) -> 1 | D18: 1 | E18: 1 | F18: 1 | G18: 1 | H18: 1 | I18: 1 | J18: 1 | K18: =SUM(K9:K16) -> 1 | L18: State selected = | M18: 1 | N18: =VLOOKUP(M18,L9:M17,2) -> Gauteng
O20: note:
L21: Type of assessment | O21: Green cells update with changes to Building Input Sheet
L22: 1 | M22: New Building
L23: 2 | M23: Refurbished Building
L25: Type selected = | M25: 1 | N25: =VLOOKUP(M25,L22:M23,2) -> New Building
B26: Mandatory requirements
L27: Type of Rating | R27: 1
L28: 1 | N28: Green Star SA - Existing Building Performance PILOT
L29: 2 | M29: Green Star SA - Existing Building Performance PILOT | N29: Green Star SA - Existing Building Performance PILOT
B30: Yes | C30: If there are mandatory requirements then this cell to the left | L30: 3 | M30: Green Star SA - Existing Building Performance PILOT | N30: Green Star SA - Existing Building Performance PILOT
C31: needs to read yes ONLY if they have been met. | K31: Type Selected = | M31: 1 | N31: =VLOOKUP(M31,L28:N30,3,) -> Green Star SA - Existing Building Performance PILOT
A32: Points Calculation
B33: Category | C33: Weighting | D33: Max Score per category | E33: Total of credits available | F33: Points achieved | G33: % of points achieved | H33: Weighted Score (achieved) | I33: Credits tbc | J33: % of credits tbc | K33: Weighted Score tbc | L33: Achieved + tbc credits | M33: % of achieved + tbc | N33: Potential weighted score | O33: Error check
B34: Management | C34: 1 | D34: =E34*C34 -> 18.5 | E34: =Management!G15 -> 18.5 | F34: =Management!H15 -> 0 | G34: =IF(E34=0,0,F34/E34) -> 0 | H34: =F34 -> 0 | I34: =Management!I15 -> 0 | J34: =I34/E34 -> 0 | K34: =I34 -> 0 | L34: =F34+I34 -> 0 | M34: =L34/E34 -> 0 | N34: =L34 -> 0 | O34: =Management!K15 -> 0
B35: Indoor Environment Quality | C35: 1 | D35: =E35*C35 -> 15.5 | E35: =IEQ!H18 -> 15.5 | F35: =IEQ!I18 -> 0 | G35: =IF(E35=0,0,F35/E35) -> 0 | H35: =F35 -> 0 | I35: =IEQ!J18 -> 0 | J35: 0 | K35: =I35 -> 0 | L35: 0 | M35: 0 | N35: =L35 -> 0 | O35: =IEQ!L18 -> 0
B36: Energy | C36: 1 | D36: 27 | E36: =Energy!G9 -> 27 | F36: =Energy!H9 -> 0 | G36: =IF(E36=0,0,F36/E36) -> 0 | H36: 0 | I36: =Energy!I9 -> 0 | J36: 0 | K36: 0 | L36: 0 | M36: 0 | N36: 0 | O36: =Energy!K9 -> 0
B37: Transport | C37: 1 | D37: 4 | E37: =Transport!G7 -> 4 | F37: =Transport!H7 -> 0 | G37: =IF(E37=0,0,F37/E37) -> 0 | H37: 0 | I37: =Transport!I7 -> 0 | J37: 0 | K37: 0 | L37: 0 | M37: 0 | N37: 0 | O37: =Transport!K7 -> 0
B38: Water | C38: 1 | D38: 12 | E38: =Water!G6 -> 12 | F38: =Water!H6 -> 0 | G38: =IF(E38=0,0,F38/E38) -> 0 | H38: 0 | I38: =Water!I6 -> 0 | J38: 0 | K38: 0 | L38: 0 | M38: 0 | N38: 0 | O38: =Water!K6 -> 0
B39: Materials | C39: 1 | D39: 12 | E39: =Materials!G14 -> 12 | F39: =Materials!H14 -> 0 | G39: =F39/E39 -> 0 | H39: 0 | I39: =Materials!I14 -> 0 | J39: 0 | K39: 0 | L39: 0 | M39: 0 | N39: 0 | O39: =Materials!K14 -> 0
B40: Land use & Ecology | C40: 1 | D40: 5 | E40: ='Land Use & Ecology'!G10 -> 5 | F40: ='Land Use & Ecology'!H10 -> 0 | G40: =IF(E40=0,0,F40/E40) -> 0 | H40: 0 | I40: ='Land Use & Ecology'!I10 -> 0 | J40: =IF(E40=0,0,I40/E40) -> 0 | K40: 0 | L40: 0 | M40: 0 | N40: 0 | O40: ='Land Use & Ecology'!K10 -> 0
B41: Emissions | C41: 1 | D41: 4.5 | E41: =Emissions!G10 -> 4.5 | F41: =Emissions!H10 -> 0 | G41: =IF(E41=0,0,F41/E41) -> 0 | H41: 0 | I41: =Emissions!I10 -> 0 | J41: 0 | K41: 0 | L41: 0 | M41: 0 | N41: 0 | O41: =Emissions!K10 -> 0
B42: Total | C42: =SUM(C34:C41) -> 8 | D42: =SUM(D34:D41) -> 98.5 | E42: =SUM(E34:E41) -> 98.5 | F42: =SUM(F34:F41) -> 0 | H42: =SUM(H34:H41)/E42*100 -> 0 | I42: =SUM(I34:I41) -> 0 | K42: =SUM(K34:K41)/E42*100 -> 0 | L42: =SUM(L34:L41) -> 0 | N42: =H42+K42 -> 0
B43: Innovation | E43: =Innovation!F8 -> 10 | F43: =Innovation!G8 -> 0 | H43: =F43 -> 0 | I43: =Innovation!H8 -> 0 | K43: =I43 -> 0 | L43: =F43+I43 -> 0 | N43: =L43 -> 0 | O43: =Innovation!J7 -> 
B44: Overall Score | H44: =H42+H43 -> 0 | K44: =K42+K43 -> 0 | L44: =L42+L43 -> 0 | N44: =N42+N43 -> 0 | O44: =SUM(O34:O43) -> 0
C46: Scores required for GBRT Ratings | F46: data for graphical summary page | K46: data for graphical summary page
C47: 0 | D47: No Rating | F47: Category Score Data | L47: Rating Chart | M47: Green Star | N47: Achieved
C48: 10 | D48: One Star | L48: No Rating | M48: =C48-C47 -> 10 | N48: =MAX(0,MIN($M48,$H$44-$C47)) -> 0
C49: 20 | D49: Two Star | H49: Available | I49: Achieved | J49: tbc | L49: One Star | M49: 10 | N49: 0
C50: 30 | D50: Three Star | G50: =B34 -> Management | H50: 1 | I50: =G34 -> 0 | J50: =J34 -> 0 | L50: Two Star | M50: 10 | N50: 0
C51: 45 | D51: Four Star | G51: Indoor Environment Quality | H51: 1 | I51: 0 | J51: 0 | L51: Three Star | M51: 15 | N51: 0
C52: 60 | D52: Five Star | G52: Energy | H52: 1 | I52: 0 | J52: 0 | L52: Four Star | M52: 15 | N52: 0
C53: 75 | D53: Six Star | G53: Transport | H53: 1 | I53: 0 | J53: 0 | L53: Five Star | M53: 15 | N53: 0
B54: Warning text | G54: Water | H54: 1 | I54: 0 | J54: 0 | L54: Six Stars | M54: =100-C53 -> 25 | N54: 0
B55: Error Message = | C55: =IF(O44>0,"ERROR - Check category sheets","") ->  | G55: Materials | H55: 1 | I55: 0 | J55: 0
G56: Land use & Ecology | H56: 1 | I56: 0 | J56: 0 | L56: Potential | N56: =$K$44 -> 0
B57: Mandatory Requirements Message | G57: Emissions | H57: 1 | I57: 0 | J57: 0
B58: =IF(B30="Yes","","Mandatory Requirements not met, Green Star SA Certified Rating not possible") -> 
B60: Rating
B61: Achieved Rating | C61: =VLOOKUP($H$44,$C$47:$D$53,2) -> No Rating | F61: data for graphical summary page | L61: data for graphical summary page
B62: Potential Rating | C62: =VLOOKUP($N$44,$C$47:$D$53,2) -> No Rating | F62: Credit Graph Data | L62: Weighted Score Graph Data
B64: Rating message | H64: Available | I64: Achieved | J64: tbc | N64: Available | O64: Achieved | P64: tbc
B65: =IF((OR((#REF!="Not Achieved"), ('Land Use & Ecology'!#REF!="Eco- Conditional Requirement NOT met"))),"Conditional requirements not met.",IF(H44<C51,"Minimal standards for Green Star SA certification not met.", "Once certified, this score would equate to a " & C61 & " rating.")) ->  | G65: =B34 -> Management | H65: =E34 -> 18.5 | M65: =B34 -> Management
I66: =F34 -> 0 | J66: =I34 -> 0 | N66: =D34 -> 18.5 | O66: =H34 -> 0 | P66: =K34 -> 0
G67: IEQ | H67: =E35 -> 15.5 | M67: IEQ
I68: =F35 -> 0 | J68: =I35 -> 0 | N68: =D35 -> 15.5 | O68: =H35 -> 0 | P68: =K35 -> 0
G69: =B36 -> Energy | H69: =E36 -> 27 | M69: =B36 -> Energy
B70: Conditional Requirements | I70: =F36 -> 0 | J70: =I36 -> 0 | N70: =D36 -> 27 | O70: =H36 -> 0 | P70: =K36 -> 0
B71: Ene | C71: =IF(#REF!="Not Achieved","Not met","Met") ->  | G71: =B37 -> Transport | H71: =E37 -> 4 | M71: =B37 -> Transport
B72: Eco | C72: =IF('Land Use & Ecology'!#REF!="Eco- Conditional Requirement met","Met","Not met") ->  | I72: =F37 -> 0 | J72: =I37 -> 0 | N72: =D37 -> 4 | O72: =H37 -> 0 | P72: =K37 -> 0
G73: =B38 -> Water | H73: =E38 -> 12 | M73: =B38 -> Water
I74: =F38 -> 0 | J74: =I38 -> 0 | N74: =D38 -> 12 | O74: =H38 -> 0 | P74: =K38 -> 0
G75: =B39 -> Materials | H75: =E39 -> 12 | M75: =B39 -> Materials
I76: =F39 -> 0 | J76: =I39 -> 0 | N76: =D39 -> 12 | O76: =H39 -> 0 | P76: =K39 -> 0
G77: =B40 -> Land use & Ecology | H77: =E40 -> 5 | M77: =B40 -> Land use & Ecology
I78: =F40 -> 0 | J78: =I40 -> 0 | N78: =D40 -> 5 | O78: =H40 -> 0 | P78: =K40 -> 0
A79: Please Confirm | G79: =B41 -> Emissions | H79: =E41 -> 4.5 | M79: =B41 -> Emissions
A80: Yes | I80: =F41 -> 0 | J80: =I41 -> 0 | N80: =D41 -> 4.5 | O80: =H41 -> 0 | P80: =K41 -> 0
A81: No
B86: 1 | C86: Applicants are to refer to the Green Star SA - Existing Building Performance PILOT Technical Manual for explicit credit criteria and documentation requirements.
B87: 2
B88: 3
B89: 4
B90: 5
B91: 6
B92: 7
D96: ERROR MESSAGES
C97: 1 | D97: ERROR, sum of no. of points achieved and points to be confirmed exceeds the total no. of available points
C98: 2 | D98: ERROR, Value entered in 'No. of points achieved' must be a number or 'na'
C99: 3 | D99: [ERROR: Please check for error message in worksheet]
C100: 4 | D100: ERROR, text not valid!

Sheet Rainfall data (hidden)
B1: Precipitation Average Monthly (mm)
C2: January | D2: February | E2: March | F2: April | G2: May | H2: June | I2: July | J2: August | K2: September | L2: October | M2: November | N2: December | O2: TOTAL | P2: annual number of rain days
A3: 1
A4: 2 | B4: Beaufort West | C4: 35 | D4: 30 | E4: 30 | F4: 20 | G4: 11 | H4: 8 | I4: 9 | J4: 14 | K4: 12 | L4: 21 | M4: 27 | N4: 19 | O4: =SUM(C4:N4) -> 236 | P4: 43
A5: 3 | B5: Bela-Bela | C5: 120 | D5: 84 | E5: 74 | F5: 37 | G5: 7 | H5: 6 | I5: 2 | J5: 5 | K5: 16 | L5: 58 | M5: 101 | N5: 124 | O5: 634 | P5: 74
A6: 4 | B6: Belfast | C6: 170 | D6: 101 | E6: 83 | F6: 53 | G6: 16 | H6: 7 | I6: 5 | J6: 9 | K6: 33 | L6: 93 | M6: 156 | N6: 152 | O6: 878 | P6: 83
A7: 5 | B7: Bethal | C7: 146 | D7: 75 | E7: 61 | F7: 48 | G7: 14 | H7: 7 | I7: 6 | J7: 13 | K7: 28 | L7: 78 | M7: 129 | N7: 106 | O7: 711 | P7: 90
A8: 6 | B8: Bethlehem | C8: 96 | D8: 77 | E8: 94 | F8: 58 | G8: 9 | H8: 12 | I8: 7 | J8: 27 | K8: 35 | L8: 83 | M8: 96 | N8: 86 | O8: 680 | P8: 98
A9: 7 | B9: Bloemfontein | C9: 83 | D9: 111 | E9: 72 | F9: 56 | G9: 17 | H9: 12 | I9: 8 | J9: 15 | K9: 24 | L9: 43 | M9: 58 | N9: 60 | O9: 559 | P9: 84
A10: 8 | B10: Calvinia | C10: 14 | D10: 12 | E10: 26 | F10: 27 | G10: 22 | H10: 34 | I10: 23 | J10: 24 | K10: 13 | L10: 11 | M10: 13 | N10: 9 | O10: 228 | P10: 50
A11: 9 | B11: Cape Town | C11: 15 | D11: 17 | E11: 20 | F11: 41 | G11: 69 | H11: 93 | I11: 82 | J11: 77 | K11: 40 | L11: 30 | M11: 14 | N11: 17 | O11: 515 | P11: 103
A12: 10 | B12: De Aar | C12: 36 | D12: 60 | E12: 52 | F12: 41 | G12: 16 | H12: 13 | I12: 13 | J12: 15 | K12: 11 | L12: 26 | M12: 30 | N12: 23 | O12: 336 | P12: 55
A13: 11 | B13: Durban | C13: 134 | D13: 113 | E13: 120 | F13: 73 | G13: 59 | H13: 28 | I13: 39 | J13: 62 | K13: 73 | L13: 98 | M13: 108 | N13: 102 | O13: 1009 | P13: 130
A14: 12 | B14: East London | C14: 69 | D14: 92 | E14: 105 | F14: 83 | G14: 52 | H14: 40 | I14: 47 | J14: 78 | K14: 80 | L14: 102 | M14: 110 | N14: 63 | O14: 921 | P14: 121
A15: 13 | B15: George | C15: 63 | D15: 59 | E15: 69 | F15: 71 | G15: 53 | H15: 45 | I15: 43 | J15: 68 | K15: 60 | L15: 64 | M15: 61 | N15: 59 | O15: 715 | P15: 121
A16: 14 | B16: Johannesburg | C16: 125 | D16: 90 | E16: 91 | F16: 54 | G16: 13 | H16: 9 | I16: 4 | J16: 6 | K16: 27 | L16: 72 | M16: 117 | N16: 105 | O16: 713 | P16: 99
A17: 15 | B17: Kimberley | C17: 57 | D17: 76 | E17: 65 | F17: 49 | G17: 16 | H17: 7 | I17: 7 | J17: 7 | K17: 12 | L17: 30 | M17: 42 | N17: 46 | O17: 414 | P17: 71
A18: 16 | B18: Ladysmith | C18: 145 | D18: 106 | E18: 90 | F18: 39 | G18: 14 | H18: 6 | I18: 5 | J18: 26 | K18: 38 | L18: 77 | M18: 91 | N18: 112 | O18: 749 | P18: 93
A19: 17 | B19: Langebaan | C19: 8 | D19: 4 | E19: 11 | F19: 24 | G19: 40 | H19: 41 | I19: 47 | J19: 45 | K19: 24 | L19: 12 | M19: 12 | N19: 10 | O19: 278 | P19: 76
A20: 18 | B20: Musina | C20: 58 | D20: 57 | E20: 39 | F20: 27 | G20: 10 | H20: 4 | I20: 1 | J20: 1 | K20: 12 | L20: 24 | M20: 49 | N20: 57 | O20: 339 | P20: 42
A21: 19 | B21: Nelspruit | C21: 127 | D21: 108 | E21: 90 | F21: 51 | G21: 15 | H21: 9 | I21: 10 | J21: 10 | K21: 26 | L21: 75 | M21: 115 | N21: 131 | O21: 767 | P21: 100
A22: 20 | B22: Nmmabatho | C22: 117 | D22: 83 | E22: 74 | F22: 57 | G22: 14 | H22: 5 | I22: 3 | J22: 5 | K22: 13 | L22: 37 | M22: 64 | N22: 67 | O22: 539 | P22: 72
A23: 21 | B23: Pietermaritzburg | C23: 141 | D23: 117 | E23: 113 | F23: 48 | G23: 24 | H23: 13 | I23: 11 | J23: 31 | K23: 60 | L23: 74 | M23: 104 | N23: 108 | O23: 844 | P23: 138
A24: 22 | B24: Pilansberg | C24: 78 | D24: 71 | E24: 58 | F24: 38 | G24: 6 | H24: 12 | I24: 3 | J24: 5 | K24: 25 | L24: 57 | M24: 61 | N24: 105 | O24: 519 | P24: 69
A25: 23 | B25: Polokwane | C25: 82 | D25: 60 | E25: 52 | F25: 33 | G25: 11 | H25: 5 | I25: 3 | J25: 6 | K25: 17 | L25: 43 | M25: 85 | N25: 81 | O25: 478 | P25: 65
A26: 24 | B26: Port Elizabeth | C26: 36 | D26: 40 | E26: 54 | F26: 58 | G26: 59 | H26: 62 | I26: 47 | J26: 64 | K26: 62 | L26: 59 | M26: 49 | N26: 34 | O26: =SUM(C27:N27) -> 674 | P26: 112
A27: 25 | B27: Pretoria | C27: 136 | D27: 75 | E27: 82 | F27: 51 | G27: 13 | H27: 7 | I27: 3 | J27: 6 | K27: 22 | L27: 71 | M27: 98 | N27: 110 | O27: =SUM(C27:N27) -> 674 | P27: 87
A28: 26 | B28: Richards Bay | C28: 172 | D28: 167 | E28: 107 | F28: 109 | G28: 109 | H28: 57 | I28: 60 | J28: 65 | K28: 77 | L28: 105 | M28: 114 | N28: 86 | O28: 1228 | P28: 113
A29: 27 | B29: Skukuza | C29: 94 | D29: 96 | E29: 66 | F29: 38 | G29: 14 | H29: 11 | I29: 11 | J29: 8 | K29: 28 | L29: 40 | M29: 63 | N29: 92 | O29: 561 | P29: 71
A30: 28 | B30: Thohoyandou | C30: 74 | D30: 108 | E30: 75 | F30: 47 | G30: 15 | H30: 17 | I30: 14 | J30: 11 | K30: 39 | L30: 93 | M30: 76 | N30: 128 | O30: 697 | P30: 94
A31: 29 | B31: Tstsikama | C31: 77 | D31: 70 | E31: 81 | F31: 80 | G31: 86 | H31: 75 | I31: 78 | J31: 111 | K31: 66 | L31: 83 | M31: 78 | N31: 60 | O31: 945 | P31: 91
A32: 30 | B32: Umtata | C32: 87 | D32: 89 | E32: 83 | F32: 58 | G32: 18 | H32: 11 | I32: 18 | J32: 15 | K32: 35 | L32: 73 | M32: 75 | N32: 88 | O32: 650 | P32: 113
A33: 31 | B33: Upington | C33: 24 | D33: 35 | E33: 37 | F33: 26 | G33: 10 | H33: 4 | I33: 2 | J33: 4 | K33: 4 | L33: 9 | M33: 17 | N33: 17 | O33: 189 | P33: 37
C35: January | D35: February | E35: March | F35: April | G35: May | H35: June | I35: July | J35: August | K35: September | L35: October | M35: November | N35: December | O35: total | P35: annual number of rain days >1mm
B36: Pretoria | C36: =VLOOKUP($B$36,$B$4:$N$33,2,FALSE) -> 136 | D36: =VLOOKUP(B36,B4:N33,3,FALSE) -> 75 | E36: =VLOOKUP($B$36,$B$4:$N$33,4,FALSE) -> 82 | F36: =VLOOKUP($B$36,$B$4:$N$33,5,FALSE) -> 51 | G36: =VLOOKUP($B$36,$B$4:$N$33,6,FALSE) -> 13 | H36: =VLOOKUP($B$36,$B$4:$N$33,7,FALSE) -> 7 | I36: =VLOOKUP($B$36,$B$4:$N$33,8,FALSE) -> 3 | J36: =VLOOKUP($B$36,$B$4:$N$33,9,FALSE) -> 6 | K36: =VLOOKUP($B$36,$B$4:$N$33,10,FALSE) -> 22 | L36: =VLOOKUP($B$36,$B$4:$N$33,11,FALSE) -> 71 | M36: =VLOOKUP($B$36,$B$4:$N$33,12,FALSE) -> 98 | N36: =VLOOKUP($B$36,$B$4:$N$33,13,FALSE) -> 110 | O36: =VLOOKUP($B$36,$B$4:$P$33,14,FALSE) -> 674 | P36: =VLOOKUP($B$36,$B$4:$P$33,15,FALSE) -> 87
